Workbook

Sheet AER only (hidden)
B1: Data in these columns used for data validation and database purposes.
B2: Date last modified: | C2: 2017-01-16 | D2: added (Albury and Victora) for AGN
C3: 2016-10-17 | D3: updated TransGrid's correct legal name, corrected TasNetworks (T) to June financial year
C4: 2017-02-01 | D4: inserted Power and Water, added NRs (dms_FeederCat_1 and dms_FeederCat_2)
C5: 2017-03-03 | D5: inserted AEMO as a business | AB5: FOR ELECTRICITY BUSINESSES ONLY
C6: 2018-03-28 | D6: major changes to accommodate STPIS
C7: Template Version | D7: 5 | AB7: Feeder Types | AF7: TasNetworks (D) | AG7: MAIFI flag | AH7: Feeder Names
AB9: CBD | AC9: Urban | AD9: Short rural | AE9: long rural | AF9: EXTRA
B10: dms_TradingName_List | C10: dms_TradingNameFull_List | D10: dms_ABN_List | E10: dms_JurisdictionList | F10: dms_Sector_List | G10: dms_Segment_List | H10: dms_FormControl_List | I10: dms_RPT_List | J10: dms_RPTMonth_List | K10: dms_CRCPlength_List | L10: dms_FRCPlength_List | M10: dms_663_List | N10: dms_DeterminationRef_List | O10: dms_Addr1_List | P10: dms_Addr2_List | Q10: dms_Suburb_List | R10: dms_State_List | S10: dms_PostCode_List | T10: dms_PAddr1_List | U10: dms_PAddr2_List | V10: dms_PSuburb_List | W10: dms_PState_List | X10: dms_PPostCode_List | Y10: dms_ContactName1_List | Z10: dms_ContactPh1_List | AA10: dms_ContactEmail_List | AB10: dms_CBD_flag | AC10: dms_Urban_flag | AD10: dms_ShortRural_flag | AE10: dms_LongRural_flag | AF10: dms_FeederType_5_flag | AG10: dms_MAIFI_flag_List | AH10: dms_FeederName_1 | AI10: dms_FeederName_2 | AJ10: dms_FeederName_3 | AK10: dms_FeederName_4 | AL10: dms_FeederName_5 | AM10: dms_Public_Lighting_List | AN10: Column1
B11: ActewAGL Distribution | C11: ActewAGL Distribution | D11: 76670568688 | E11: ACT | F11: Electricity | G11: Distribution | H11: Revenue cap | I11: Financial | J11: June | K11: 5 | L11: 5 | M11: 5 | N11: 2014-19 Distribution Determination | O11: 40 Bunda Street | Q11: CANBERRA | R11: ACT | S11: 2600 | T11: GPO BOX 366 | V11: CANBERRA | W11: ACT | X11: 2601 | Y11: Robert Walker | Z11: 02 6248 3847 | AA11: robert.walker@actewagle.com.au | AB11: NO | AC11: YES | AD11: YES | AE11: NO | AF11: NO | AG11: NO | AH11: CBD | AI11: Urban | AJ11: Short rural | AK11: Long rural | AM11: YES | AN11: ActewAGL Distribution
B12: ActewAGL Distribution (Tx Assets) | C12: ActewAGL Distribution (Tx Assets) | D12: 76670568688 | E12: ACT | F12: Electricity | G12: Distribution | H12: Revenue cap | I12: Financial | J12: June | K12: 5 | L12: 5 | M12: 5 | N12: distribution determination | O12: 40 Bunda Street | Q12: CANBERRA | R12: ACT | S12: 2600 | T12: GPO BOX 366 | V12: CANBERRA | W12: ACT | X12: 2601 | Y12: Robert Walker | Z12: 02 6248 3847 | AA12: robert.walker@actewagle.com.au | AB12: NO | AC12: YES | AD12: YES | AE12: NO | AF12: NO | AG12: NO | AH12: CBD | AI12: Urban | AJ12: Short rural | AK12: Long rural | AM12: NO | AN12: ActewAGL Distribution (Tx Assets)
B13: ActewAGL Gas | C13: ActewAGL Gas | D13: 76670568688 | E13: ACT | F13: Gas | G13: Distribution | H13: Weighted average price cap | I13: Financial | J13: June | K13: 5 | L13: 5 | M13: x | O13: 40 Bunda Street | Q13: CANBERRA | R13: ACT | S13: 2600 | T13: GPO BOX 366 | V13: CANBERRA | W13: ACT | X13: 2601 | Y13: Philip Deamer | Z13: 02 6248 3438 | AA13: GasAAReview@actewagl.com.au | AB13: NO | AC13: NO | AD13: NO | AE13: NO | AF13: NO | AG13: - | AH13: CBD | AI13: Urban | AJ13: Short rural | AK13: Long rural | AM13: NO | AN13: ActewAGL Gas
B14: AEMO | C14: Australian Energy Market Operator Ltd | D14: 94072010327 | E14: Vic | F14: Electricity | G14: Transmission | H14: - | I14: Financial | J14: March | K14: 5 | L14: 5 | M14: x | N14: - | O14: Level 22 | P14: 530 Collins Street | Q14: MELBOURNE | R14: VIC | S14: 3000 | T14: GPO Box 2008 | V14: MELBOURNE | W14: VIC | X14: 3001 | AB14: NO | AC14: NO | AD14: NO | AE14: NO | AF14: NO | AG14: - | AH14: CBD | AI14: Urban | AJ14: Short rural | AK14: Long rural | AM14: NO | AN14: AEMO
B15: AGN (Albury and Victoria) | C15: Australian Gas Networks Limited (reporting data for Albury and Victoria) | D15: 19078551685 | E15: Vic | F15: Gas | G15: Distribution | H15: Weighted average price cap | I15: Calendar | J15: December | K15: 5 | L15: 5 | M15: x | O15: Level 6 | P15: 400 King William Street | Q15: ADELAIDE | R15: SA | S15: 5000 | T15: PO Box 6468 | U15: Halifax Street | V15: ADELAIDE | W15: SA | X15: 5000 | Y15: Craig de Laine | Z15: 08 8418 1129 | AA15: craig.delaine@agn.com.au | AB15: NO | AC15: NO | AD15: NO | AE15: NO | AF15: NO | AG15: - | AH15: CBD | AI15: Urban | AJ15: Short rural | AK15: Long rural | AM15: NO | AN15: AGN (Albury)
B16: AGN (Albury) | C16: Australian Gas Networks Limited (reporting data for Albury) | D16: 19078551685 | E16: Vic | F16: Gas | G16: Distribution | H16: Weighted average price cap | I16: Calendar | J16: December | K16: 5 | L16: 5 | M16: x | O16: Level 6 | P16: 400 King William Street | Q16: ADELAIDE | R16: SA | S16: 5000 | T16: PO Box 6468 | U16: Halifax Street | V16: ADELAIDE | W16: SA | X16: 5000 | Y16: Craig de Laine | Z16: 08 8418 1129 | AA16: craig.delaine@agn.com.au | AB16: NO | AC16: NO | AD16: NO | AE16: NO | AF16: NO | AG16: - | AH16: CBD | AI16: Urban | AJ16: Short rural | AK16: Long rural | AM16: NO
B17: AGN (SA) | C17: Australian Gas Networks Limited (reporting data for SA) | D17: 19078551685 | E17: SA | F17: Gas | G17: Distribution | H17: Weighted average price cap | I17: Financial | J17: June | K17: 5 | L17: 5 | M17: 5 | N17: distribution determination | O17: Level 6 | P17: 400 King William Street | Q17: ADELAIDE | R17: SA | S17: 5000 | T17: PO Box 6468 | U17: Halifax Street | V17: ADELAIDE | W17: SA | X17: 5000 | Y17: Craig de Laine | Z17: 08 8418 1129 | AA17: craig.delaine@agn.com.au | AB17: NO | AC17: NO | AD17: NO | AE17: NO | AF17: NO | AG17: - | AH17: CBD | AI17: Urban | AJ17: Short rural | AK17: Long rural | AM17: NO | AN17: AGN (SA)
B18: AGN (Victoria) | C18: Australian Gas Networks Limited (reporting data for Victoria) | D18: 19078551685 | E18: Vic | F18: Gas | G18: Distribution | H18: Weighted average price cap | I18: Calendar | J18: December | K18: 5 | L18: 5 | M18: x | O18: Level 6 | P18: 400 King William Street | Q18: ADELAIDE | R18: SA | S18: 5000 | T18: PO Box 6468 | U18: Halifax Street | V18: ADELAIDE | W18: SA | X18: 5000 | Y18: Craig de Laine | Z18: 08 8418 1129 | AA18: craig.delaine@agn.com.au | AB18: NO | AC18: NO | AD18: NO | AE18: NO | AF18: NO | AG18: - | AH18: CBD | AI18: Urban | AJ18: Short rural | AK18: Long rural | AM18: NO | AN18: AGN (Victoria)
B19: Amadeus | C19: APT Pipelines (NT) Pty Ltd | D19: 39009737393 | E19: NT | F19: Gas | G19: Transmission | H19: Weighted average price cap | I19: Financial | J19: June | K19: 5 | L19: 5 | M19: x | N19: n/a | O19: Level 19, HSBC Building | P19: 580 George Street | Q19: SYDNEY | R19: NSW | S19: 2000 | T19: Level 19, HSBC Building | U19: 580 George Street | V19: SYDNEY | W19: NSW | X19: 2000 | Y19: Alexandra Curran | Z19: 02 9275 0020 | AA19: alexandra.curran@apa.com.au | AB19: NO | AC19: NO | AD19: NO | AE19: NO | AF19: NO | AG19: - | AH19: CBD | AI19: Urban | AJ19: Short rural | AK19: Long rural | AM19: NO | AN19: Amadeus
B20: APA GasNet | C20: APA GasNet Australia (Operations) Pty Ltd | D20: 065083009 | E20: Vic | F20: Gas | G20: Transmission | H20: Weighted average price cap | I20: Calendar | J20: December | K20: 5 | L20: 5 | M20: x | O20: Level 19, HSBC Building | P20: 580 George Street | Q20: SYDNEY | R20: NSW | S20: 2000 | T20: PO Box R41 | V20: ROYAL EXCHANGE | W20: NSW | X20: 1225 | Y20: Alexandra Curran | Z20: 02 9275 0020 | AA20: alexandra.curran@apa.com.au | AB20: NO | AC20: NO | AD20: NO | AE20: NO | AF20: NO | AG20: - | AH20: CBD | AI20: Urban | AJ20: Short rural | AK20: Long rural | AM20: NO | AN20: APA GasNet
B21: Ausgrid | C21: Ausgrid | D21: 78508211731 | E21: NSW | F21: Electricity | G21: Distribution | H21: Revenue cap | I21: Financial | J21: June | K21: 5 | L21: 5 | M21: 5 | N21: 2014-19 Distribution Determination | O21: 570 George St | Q21: SYDNEY | R21: NSW | S21: 2000 | T21: GPO Box 4009 | V21: SYDNEY | W21: NSW | X21: 2001 | Y21: John Thomson | Z21: 02 9269 2312 | AA21: john.thomson@ausgrid.com.au | AB21: YES | AC21: YES | AD21: YES | AE21: YES | AF21: NO | AG21: NO | AH21: CBD | AI21: Urban | AJ21: Short rural | AK21: Long rural | AM21: YES | AN21: Ausgrid
B22: Ausgrid (Tx Assets) | C22: Ausgrid (Tx Assets) | D22: 67505337385 | E22: NSW | F22: Electricity | G22: Distribution | H22: Revenue cap | I22: Financial | J22: June | K22: 5 | L22: 5 | M22: 5 | N22: distribution determination | O22: 570 George St | Q22: SYDNEY | R22: NSW | S22: 2000 | T22: GPO Box 4009 | V22: SYDNEY | W22: NSW | X22: 2001 | Y22: John Thomson | Z22: 02 9269 2312 | AA22: john.thomson@ausgrid.com.au | AB22: YES | AC22: YES | AD22: YES | AE22: YES | AF22: NO | AG22: NO | AH22: CBD | AI22: Urban | AJ22: Short rural | AK22: Long rural | AM22: NO | AN22: Ausgrid (Tx Assets)
B23: AusNet (D) | C23: AusNet Electricity Services Pty Ltd | D23: 91064651118 | E23: Vic | F23: Electricity | G23: Distribution | H23: Revenue cap | I23: Calendar | J23: December | K23: 5 | L23: 5 | M23: 2 | N23: 2016-20 Distribution Determination | O23: Level 32 | P23: 2 Southbank Boulevard | Q23: SOUTHBANK | R23: Vic | S23: 3006 | T23: Locked Bag 14051 | V23: MELBOURNE CITY MAIL CENTRE | W23: VIC | X23: 8001 | Y23: Thomas Hall | AA23: thomas. hall@ausnetservices.com.au | AB23: NO | AC23: YES | AD23: YES | AE23: YES | AF23: NO | AG23: YES | AH23: CBD | AI23: Urban | AJ23: Short rural | AK23: Long rural | AM23: YES | AN23: AusNet (D)
B24: AusNet (Gas) | C24: AusNet Gas Services | D24: 086015036 | E24: Vic | F24: Gas | G24: Distribution | H24: Weighted average price cap | I24: Calendar | J24: December | K24: 5 | L24: 5 | M24: X | O24: Level 19, HSBC Building | P24: 580 George Street | Q24: SYDNEY | R24: NSW | S24: 2000 | T24: PO Box R41 | V24: ROYAL EXCHANGE | W24: NSW | X24: 1225 | Y24: Alexandra Curran | Z24: 02 9275 0020 | AA24: alexandra.curran@apa.com.au | AB24: NO | AC24: NO | AD24: NO | AE24: NO | AF24: NO | AG24: - | AH24: CBD | AI24: Urban | AJ24: Short rural | AK24: Long rural | AM24: NO | AN24: AusNet (Gas)
B25: AusNet (T) | C25: Ausnet Services (Transmission) Ltd | D25: 48116124362 | E25: Vic | F25: Electricity | G25: Transmission | H25: Revenue cap | I25: Financial | J25: March | K25: 5 | L25: 5 | M25: 2 | N25: transmission determination | O25: Level 32 | P25: 2 Southbank Boulevard | Q25: SOUTHBANK | R25: Vic | S25: 3006 | T25: Locked Bag 14051 | V25: MELBOURNE CITY MAIL CENTRE | W25: Vic | X25: 8001 | Y25: Clare Thompson | Z25: 03 9695 6670 | AA25: clare.e.thompson@ausnetservices.com.au | AB25: NO | AC25: NO | AD25: NO | AE25: NO | AF25: NO | AG25: - | AH25: CBD | AI25: Urban | AJ25: Short rural | AK25: Long rural | AM25: NO | AN25: AusNet (T)
B26: Australian Distribution Co. | C26: Australian Distribution Co. | D26: 11222333444 | E26: - | F26: Electricity | G26: Distribution | H26: Revenue cap | I26: Financial | J26: June | K26: 5 | L26: 5 | M26: 2 | N26: distribution determination | O26: 123 Straight Street | Q26: SYDNEY | R26: NSW | S26: 2000 | T26: PO Box 123 | V26: SYDNEY | W26: NSW | X26: 2000 | Y26: Bob Smith | Z26: 02 1234 5678 | AA26: bob@auselec.net.au | AB26: YES | AC26: YES | AD26: YES | AE26: YES | AF26: NO | AG26: NO | AH26: CBD | AI26: Urban | AJ26: Short rural | AK26: Long rural | AM26: YES | AN26: Australian Distribution Co.
B27: Australian Distribution Co. (Gas) | C27: Australian Gas Distribution Co. | D27: 11222333444 | E27: NSW | F27: Gas | G27: Distribution | H27: Weighted average price cap | I27: Financial | J27: June | K27: 5 | L27: 5 | O27: 123 Straight Street | Q27: SYDNEY | R27: NSW | S27: 2000 | T27: PO Box 123 | V27: SYDNEY | W27: NSW | X27: 2000 | Y27: Bob Smith | Z27: 02 1234 5678 | AA27: bob@auselec.net.au | AB27: NO | AC27: NO | AD27: NO | AE27: NO | AF27: NO | AG27: - | AH27: CBD | AI27: Urban | AJ27: Short rural | AK27: Long rural | AM27: NO | AN27: Australian Distribution Co. (Vic)
B28: Australian Distribution Co. (Vic) | C28: Australian Distribution Co. (Victoria) | D28: 11222333444 | E28: Vic | F28: Electricity | G28: Distribution | H28: Revenue cap | I28: Calendar | J28: December | K28: 5 | L28: 5 | M28: 2 | N28: distribution determination | O28: 123 Straight Street | Q28: MELBOURNE | R28: Vic | S28: 3000 | T28: PO Box 123 | V28: MELBOURNE | W28: VIC | X28: 3000 | Y28: Bob Smith | Z28: 02 1234 5678 | AA28: bob@auselec.net.au | AB28: NO | AC28: NO | AD28: NO | AE28: NO | AF28: NO | AG28: YES | AH28: CBD | AI28: Urban | AJ28: Short rural | AK28: Long rural | AM28: YES | AN28: Australian Distribution Co. (Vic)
B29: Australian Transmission Co. | C29: Australian Transmission Co. | D29: 11222333444 | E29: - | F29: Electricity | G29: Transmission | H29: Revenue cap | I29: Financial | J29: June | K29: 5 | L29: 5 | M29: 5 | N29: transmission determination | O29: 123 Straight Street | Q29: SYDNEY | R29: NSW | S29: 2000 | T29: PO Box 123 | V29: SYDNEY | W29: NSW | X29: 2000 | Y29: Bob Smith | Z29: 02 1234 5678 | AA29: bob@auselec.net.au | AB29: NO | AC29: NO | AD29: NO | AE29: NO | AF29: NO | AG29: - | AH29: CBD | AI29: Urban | AJ29: Short rural | AK29: Long rural | AM29: NO | AN29: Australian Transmission Co.
B30: Central Ranges Pipeline (D) | C30: Central Ranges Pipeline Pty Ltd | D30: 108218355 | E30: NSW | F30: Gas | G30: Distribution | H30: Weighted average price cap | I30: Financial | J30: June | K30: 15 | L30: 5 | M30: 5 | N30: distribution determination | O30: Level 19 | P30: 580 George Street | Q30: SYDNEY | R30: NSW | S30: 2000 | T30: PO Box R41 | V30: ROYAL EXCHANGE | W30: NSW | X30: 1225 | Y30: Scott Young | Z30: 02 9275 0031 | AA30: scott.young@apa.com.au | AB30: NO | AC30: NO | AD30: NO | AE30: NO | AF30: NO | AG30: - | AH30: CBD | AI30: Urban | AJ30: Short rural | AK30: Long rural | AM30: NO
B31: Central Ranges Pipeline (T) | C31: Central Ranges Pipeline Pty Ltd | D31: 108218355 | E31: NSW | F31: Gas | G31: Distribution | H31: Weighted average price cap | I31: Financial | J31: June | K31: 14 | L31: 5 | M31: 5 | N31: transmission determination | O31: Level 19 | P31: 580 George Street | Q31: SYDNEY | R31: NSW | S31: 2000 | T31: PO Box R41 | V31: ROYAL EXCHANGE | W31: NSW | X31: 1225 | Y31: Scott Young | Z31: 02 9275 0031 | AA31: scott.young@apa.com.au | AB31: NO | AC31: NO | AD31: NO | AE31: NO | AF31: NO | AG31: - | AH31: CBD | AI31: Urban | AJ31: Short rural | AK31: Long rural | AM31: NO
B32: CitiPower | C32: CitiPower | D32: 76064651056 | E32: Vic | F32: Electricity | G32: Distribution | H32: Revenue cap | I32: Calendar | J32: December | K32: 5 | L32: 5 | M32: 2 | N32: 2016-20 Distribution Determination | O32: 40 Market Street | Q32: MELBOURNE | R32: Vic | S32: 3000 | T32: Locked Bag 14090 | V32: MELBOURNE | W32: VIC | X32: 8001 | Y32: Hannah Williams | Z32: 03 9683 4088 | AA32: hwilliams@powercor.com.au | AB32: YES | AC32: YES | AD32: NO | AE32: NO | AF32: NO | AG32: YES | AH32: CBD | AI32: Urban | AJ32: Short rural | AK32: Long rural | AM32: YES | AN32: CitiPower
B33: Directlink | C33: Directlink | D33: 16779340889 | E33: Qld | F33: Electricity | G33: Transmission | H33: Revenue cap | I33: Financial | J33: June | K33: 5 | L33: 5 | M33: 5 | N33: transmission determination | O33: Level 19, HSBC Building | P33: 580 George Street | Q33: SYDNEY | R33: NSW | S33: 2000 | T33: PO Box R41 | V33: ROYAL EXCHANGE | W33: NSW | X33: 1225 | Y33: Scott Young | Z33: 02 9275 0031 | AA33: scott.young@apa.com.au | AB33: NO | AC33: NO | AD33: NO | AE33: NO | AF33: NO | AG33: - | AH33: CBD | AI33: Urban | AJ33: Short rural | AK33: Long rural | AM33: NO | AN33: Directlink
B34: ElectraNet | C34: ElectraNet | D34: 41094482416 | E34: SA | F34: Electricity | G34: Transmission | H34: Revenue cap | I34: Financial | J34: June | K34: 5 | L34: 5 | M34: 5 | N34: transmission determination | O34: 52-55 East Terrace | P34: Rymill Park | Q34: ADELAIDE | R34: SA | S34: 5000 | T34: PO Box 7096 | U34: Hutt Street Post Office | V34: ADELAIDE | W34: SA | X34: 5000 | Y34: Bill Jackson | Z34: 08 8404 7969 | AA34: jackson.bill@electranet.com.au | AB34: NO | AC34: NO | AD34: NO | AE34: NO | AF34: NO | AG34: - | AH34: CBD | AI34: Urban | AJ34: Short rural | AK34: Long rural | AM34: NO | AN34: ElectraNet
B35: Endeavour Energy | C35: Endeavour Energy | D35: 11247365823 | E35: NSW | F35: Electricity | G35: Distribution | H35: Revenue cap | I35: Financial | J35: June | K35: 5 | L35: 5 | M35: 5 | N35: 2014-19 Distribution Determination | O35: 51 Huntingwood Drive | Q35: HUNTINGWOOD | R35: NSW | S35: 2148 | T35: PO Box 811 | V35: SEVEN HILLS | W35: NSW | X35: 1730 | Y35: Jon Hocking | Z35: 02 9853 4386 / 0407 348 156 | AA35: Jon.Hocking@Endeavourenergy.com.au | AB35: NO | AC35: YES | AD35: YES | AE35: YES | AF35: NO | AG35: NO | AH35: CBD | AI35: Urban | AJ35: Short rural | AK35: Long rural | AM35: YES | AN35: Endeavour Energy
B36: Energex | C36: Energex | D36: 40078849055 | E36: Qld | F36: Electricity | G36: Distribution | H36: Revenue cap | I36: Financial | J36: June | K36: 5 | L36: 5 | M36: 5 | N36: 2015-20 Distribution Determination | O36: 26 Reddacliff Street | Q36: NEWSTEAD | R36: Qld | S36: 4006 | T36: 26 Reddacliff Street | V36: NEWSTEAD | W36: QLD | X36: 4006 | Y36: Jenny Doyle, Group Manager Regulatory Affairs | Z36: (07) 3851 6416 | AA36: jenny.doyle@ergon.com.au | AB36: YES | AC36: YES | AD36: YES | AE36: NO | AF36: NO | AG36: NO | AH36: CBD | AI36: Urban | AJ36: Short rural | AK36: Long rural | AM36: YES | AN36: Energex
B37: Ergon Energy | C37: Ergon Energy | D37: 50087646062 | E37: Qld | F37: Electricity | G37: Distribution | H37: Revenue cap | I37: Financial | J37: June | K37: 5 | L37: 5 | M37: 5 | N37: 2015-20 Distribution Determination | O37: 22 Walker Street | Q37: TOWNSVILLE | R37: Qld | S37: 4810 | T37: Po Box 264 | V37: FORTITUDE VALLEY | W37: QLD | X37: 4006 | Y37: Jenny Doyle, Group Manager Regulatory Affairs | Z37: (07) 3851 6416 | AA37: jenny.doyle@ergon.com.au | AB37: NO | AC37: YES | AD37: YES | AE37: YES | AF37: NO | AG37: NO | AH37: CBD | AI37: Urban | AJ37: Short rural | AK37: Long rural | AM37: YES | AN37: Ergon Energy
B38: Essential Energy | C38: Essential Energy | D38: 37428185226 | E38: NSW | F38: Electricity | G38: Distribution | H38: Revenue cap | I38: Financial | J38: June | K38: 5 | L38: 5 | M38: 5 | N38: 2014-19 Distribution Determination | O38: 8 Buller Street | Q38: PORT MACQUARIE | R38: NSW | S38: 2444 | T38: PO Box 5730 | V38: PORT MACQUARIE | W38: NSW | X38: 2444 | Y38: Catherine Waddell | Z38: 02 6338 3553 | AA38: catherine.waddell@essentialenergy.com.au | AB38: NO | AC38: NO | AD38: YES | AE38: YES | AF38: NO | AG38: NO | AH38: CBD | AI38: Urban | AJ38: Short rural | AK38: Long rural | AM38: YES | AN38: Essential Energy
B39: Jemena Electricity | C39: Jemena Electricity | D39: 82064651083 | E39: Vic | F39: Electricity | G39: Distribution | H39: Revenue cap | I39: Calendar | J39: December | K39: 5 | L39: 5 | M39: 2 | N39: 2016-20 Distribution Determination | O39: Level 16 | P39: 567 Collins Street | Q39: MELBOURNE | R39: VIC | S39: 3000 | T39: PO Box 16182 | V39: MELBOURNE | W39: VIC | X39: 8001 | Y39: Matthew Serpell | Z39: 03 9173 8231 | AA39: matthew.serpell@jemena.com.au | AB39: NO | AC39: YES | AD39: YES | AE39: NO | AF39: NO | AG39: YES | AH39: CBD | AI39: Urban | AJ39: Short rural | AK39: Long rural | AM39: YES | AN39: Jemena Electricity
B40: JGN | C40: Jemena Gas Networks (NSW) Ltd | D40: 003 004 322 | E40: NSW | F40: Gas | G40: Distribution | H40: Weighted average price cap | I40: Financial | J40: June | K40: 5 | L40: 5 | Y40: please provide contact details | AB40: NO | AC40: NO | AD40: NO | AE40: NO | AF40: NO | AG40: - | AH40: CBD | AI40: Urban | AJ40: Short rural | AK40: Long rural | AM40: NO | AN40: JGN
B41: Multinet Gas | C41: Multinet Gas (DB No.1) Pty Ltd (ACN 086 026 986), Multinet Gas (DB No.2) Pty Ltd (ACN 086 230 122) | D41: 086026986 | E41: Vic | F41: Gas | G41: Distribution | H41: Weighted average price cap | I41: Calendar | J41: December | K41: 5 | L41: 5 | M41: x | O41: 43-45 Centreway | Q41: MT WAVERLEY | R41: Vic | S41: 3149 | Y41: Andrew Schille | Z41: 03 8846 9860 | AA41: andrew.schille@ue.com.au | AB41: NO | AC41: NO | AD41: NO | AE41: NO | AF41: NO | AG41: - | AH41: CBD | AI41: Urban | AJ41: Short rural | AK41: Long rural | AM41: NO | AN41: Multinet Gas
B42: Murraylink | C42: Murraylink | D42: 79181207909 | E42: SA | F42: Electricity | G42: Transmission | H42: Revenue cap | I42: Financial | J42: June | K42: 5 | L42: 5 | M42: 5 | N42: transmission determination | O42: Level 19 | P42: 580 George Street | Q42: SYDNEY | R42: NSW | S42: 2000 | T42: PO Box R41 | V42: ROYAL EXCHANGE | W42: NSW | X42: 1225 | Y42: Scott Young | Z42: 02 9275 0031 | AA42: scott.young@apa.com.au | AB42: NO | AC42: NO | AD42: NO | AE42: NO | AF42: NO | AG42: - | AH42: CBD | AI42: Urban | AJ42: Short rural | AK42: Long rural | AM42: NO | AN42: Murraylink
B43: Power and Water | C43: Power and Water Corporation | D43: 15947352360 | E43: NT | F43: Electricity | G43: Distribution | H43: Revenue cap | I43: Financial | J43: June | K43: 5 | L43: 5 | M43: x | N43: distribution determination | O43: GPO Box 1921 | Q43: DARWIN | R43: NT | S43: 801 | T43: GPO Box 1921 | V43: DARWIN | W43: NT | X43: 801 | Y43: Lucy Moon | Z43: 08 8924 5822 | AA43: Lucy.Moon@powerwater.com.au | AB43: YES | AC43: YES | AD43: YES | AE43: YES | AF43: NO | AG43: NO | AH43: CBD | AI43: Urban | AJ43: Short rural | AK43: Long rural | AM43: NO | AN43: Power and Water
B44: Powercor Australia | C44: Powercor Australia | D44: 89064651109 | E44: Vic | F44: Electricity | G44: Distribution | H44: Revenue cap | I44: Calendar | J44: December | K44: 5 | L44: 5 | M44: 2 | N44: 2016-20 Distribution Determination | O44: 40 Market Street | Q44: MELBOURNE | R44: Vic | S44: 3000 | T44: Locked bag 14090 | V44: MELBOURNE | W44: VIC | X44: 8001 | Y44: Hannah Williams | Z44: 03 9683 4088 | AA44: hwilliams@powercor.com.au | AB44: NO | AC44: NO | AD44: YES | AE44: YES | AF44: NO | AG44: YES | AH44: CBD | AI44: Urban | AJ44: Short rural | AK44: Long rural | AM44: YES | AN44: Powercor Australia
B45: Powerlink | C45: Queensland Electricity Transmission Corporation Limited trading as Powerlink Queensland | D45: 82078849233 | E45: Qld | F45: Electricity | G45: Transmission | H45: Revenue cap | I45: Financial | J45: June | K45: 5 | L45: 5 | M45: 5 | N45: transmission determination | O45: 33 Harold St | Q45: VIRGINIA | R45: Qld | S45: 4014 | T45: PO Box 1193 | V45: VIRGINIA | W45: QLD | X45: 4014 | Y45: Jennifer Harris | Z45: 07 3860 2667 | AA45: jharris@powerlink.com.au | AB45: NO | AC45: NO | AD45: NO | AE45: NO | AF45: NO | AG45: - | AH45: CBD | AI45: Urban | AJ45: Short rural | AK45: Long rural | AM45: NO | AN45: Powerlink
B46: Roma to Brisbane Pipeline | C46: APT Petroleum Pipelines Limited t/a Roma to Brisbane Pipeline | D46: 009 737 393 | E46: Qld | F46: Gas | G46: Transmission | H46: Weighted average price cap | I46: Financial | J46: June | K46: 5 | L46: 5 | M46: x | N46: n/a | O46: 580 George Street | Q46: SYDNEY | R46: NSW | S46: 2000 | T46: PO Box R41 | V46: ROYAL EXCHANGE | W46: NSW | X46: 1225 | Y46: Mark Allen | Z46: 02 9275 0010 | AA46: mark.allen@apa.com.au | AB46: NO | AC46: NO | AD46: NO | AE46: NO | AF46: NO | AG46: - | AH46: CBD | AI46: Urban | AJ46: Short rural | AK46: Long rural | AM46: NO | AN46: Roma to Brisbane Pipeline
B47: SA Power Networks | C47: SA Power Networks | D47: 13332330749 | E47: SA | F47: Electricity | G47: Distribution | H47: Revenue cap | I47: Financial | J47: June | K47: 5 | L47: 5 | M47: 5 | N47: 2015-20 Distribution Determination | O47: 1 Anzac Highway | Q47: KESWICK | R47: SA | S47: 5035 | T47: GPO Box 77 | V47: ADELAIDE | W47: SA | X47: 5000 | Y47: Richard Sibly | Z47: 08 8404 5613 | AA47: richard.sibly@sapowernetworks.com.au | AB47: NO | AC47: NO | AD47: YES | AE47: YES | AF47: NO | AG47: NO | AH47: CBD | AI47: Urban | AJ47: Short rural | AK47: Long rural | AM47: NO | AN47: SA Power Networks
B48: TasNetworks (D) | C48: TasNetworks (D) | D48: 24167357299 | E48: Tas | F48: Electricity | G48: Distribution | H48: Revenue cap | I48: Financial | J48: June | K48: 5 | L48: 5 | M48: 5 | N48: distribution determination | O48: 1-7 Maria Street | Q48: LENAH VALLEY | R48: Tas | S48: 7008 | T48: PO Box 606 | V48: MOONAH | W48: Tas | X48: 7009 | Y48: John Sayers | Z48: 03 6271 6469 | AA48: john.sayers@tasnetworks.com.au | AB48: YES | AC48: YES | AD48: YES | AE48: YES | AF48: YES | AG48: NO | AH48: Critical Infrastructure | AI48: High density commercial | AJ48: Urban | AK48: High density rural | AL48: Low density rural | AM48: YES | AN48: TasNetworks (D)
B49: TasNetworks (T) | C49: TasNetworks (T) | D49: 24167357299 | E49: Tas | F49: Electricity | G49: Transmission | H49: Revenue cap | I49: Financial | J49: June | K49: 5 | L49: 5 | M49: 5 | N49: transmission determination | O49: 1-7 Maria Street | Q49: LENAH VALLEY | R49: Tas | S49: 7008 | T49: PO Box 606 | V49: MOONAH | W49: Tas | X49: 7009 | Y49: John Sayers | Z49: 03 6271 6469 | AA49: john.sayers@tasnetworks.com.au | AB49: NO | AC49: NO | AD49: NO | AE49: NO | AF49: NO | AG49: - | AH49: CBD | AI49: Urban | AJ49: Short rural | AK49: Long rural | AM49: NO | AN49: TasNetworks (T)
B50: TransGrid | C50: NSW Electricity Networks Operations Pty Ltd trading as TransGrid | D50: 70 250 995 390 | E50: NSW | F50: Electricity | G50: Transmission | H50: Revenue cap | I50: Financial | J50: June | K50: 4 | L50: 5 | M50: 5 | N50: transmission determination | O50: 180 Thomas Street | Q50: SYDNEY | R50: NSW | S50: 2000 | T50: PO Box A1000 | V50: SYDNEY SOUTH | W50: NSW | X50: 1235 | Y50: Garrie Chubb | Z50: 0408 210 221 | AA50: garrie.chubb@transgrid.com.au | AB50: NO | AC50: NO | AD50: NO | AE50: NO | AF50: NO | AG50: - | AH50: CBD | AI50: Urban | AJ50: Short rural | AK50: Long rural | AM50: NO | AN50: TransGrid
B51: United Energy | C51: United Energy | D51: 70064651029 | E51: Vic | F51: Electricity | G51: Distribution | H51: Revenue cap | I51: Calendar | J51: December | K51: 5 | L51: 5 | M51: 2 | N51: 2016-20 Distribution Determination | O51: 43-45 Centreway | Q51: MOUNT WAVERLEY | R51: Vic | S51: 3149 | T51: PO Box 449 | V51: MOUNT WAVERLEY | W51: VIC | X51: 3170 | Y51: Mathew Abraham | Z51: 03 8846 9758 | AA51: mathew.abraham@ue.com.au | AB51: NO | AC51: NO | AD51: YES | AE51: NO | AF51: NO | AG51: YES | AH51: CBD | AI51: Urban | AJ51: Short rural | AK51: Long rural | AM51: YES | AN51: United Energy
Z54: For EB & Reset RINs only | AE54: For AARs only
B55: The Reg Year Ending (dms_RYE) must be set to the last year of the regulatory period. For forecast data is is usually (FRCP_y5) for actual it is a single year (CRY). For historical actual data the RYE will need to be set manually in the business details sheet by setting the dms_Multiyear_flag to 1 and putting the correct value in 'dms_Specified_FinalYear. See cells C67:C68 | N55: Drop down selector box for CA & Reset RINs. | O55: For CA & Reset RINs only | Z55: for DNSP only | AE55: For DNSPs only
B56: dms_Model_List | C56: dms_Worksheet_List | E56: dms_RYE_Formula_Result | N56: dms_0203_ProjectType | O56: dms_020303_01_UOM | P56: dms_020501_01_UOM | Q56: dms_020501_02_UOM | R56: dms_020501_03_UOM | S56: dms_020501_04_UOM | T56: dms_020603_01_UOM | U56: dms_020701_01_UOM | V56: dms_020701_02_UOM | W56: dms_020701_01_Rows | X56: dms_040102_01_UOM | Y56: dms_040102_04_UOM | Z56: dms_030601_01_UOM | AA56: dms_030601_02_UOM | AB56: dms_030701_01_UOM | AC56: dms_030702_01_UOM | AD56: dms_030703_01_UOM | AE56: dms_030605_UOM | AF56: dms_03060703_UOM
B57: ARR | C57: ANNUAL REPORTING STATEMENT | E57: =LEFT(dms_SingleYear_FinalYear_Result,2)&RIGHT(dms_SingleYear_FinalYear_Result,2) -> noIN | F57: =LEFT(dms_SingleYear_FinalYear_Result,2)&RIGHT(dms_SingleYear_FinalYear_Result,2) | H57: Formula errors are OK | N57: New line on new route - single circuit | O57: Circuit line length in km | P57: 0's | Q57: 0's | R57: 0's | S57: 0's | T57: 0's | U57: km | V57: km | W57: Route line length within zone | X57: 0's | Y57: days | Z57: minutes/customer | AA57: minutes/customer | AB57: Customer / km | AC57: % | AD57: km | AE57: number | AF57: number
B58: CA | C58: CATEGORY ANALYSIS | E58: =LEFT(dms_SingleYear_FinalYear_Result,2)&RIGHT(dms_SingleYear_FinalYear_Result,2) -> noIN | F58: =LEFT(dms_SingleYear_FinalYear_Result,2)&RIGHT(dms_SingleYear_FinalYear_Result,2) | H58: Formula errors are OK | N58: New line on new route - dual circuit | O58: Circuit line length in km | P58: 0's | Q58: 0's | R58: 0's | S58: 0's | T58: 0's | U58: 0's | V58: 0's | W58: Number of maintenance spans | X58: 0's | Y58: 0's | Z58: minutes/customer | AA58: minutes/customer | AB58: MWh/customer | AC58: Number of spans | AE58: number | AF58: number
B59: CESS | C59: CAPITLAL EXPENDITURE SHARING SCHEMING | E59: 2016 | F59: =LEFT(dms_SingleYear_FinalYear_Result,2)&RIGHT(dms_SingleYear_FinalYear_Result,2) | N59: New line on new route - other | O59: Circuit line length in km | P59: MVA added | Q59: MVA added | R59: MVA added | S59: MVA added | T59: 0's | U59: km | V59: km | W59: Total length of maintenance spans | X59: 0's | Y59: $0s | Z59: interruptions/customer | AA59: interruptions/customer | AB59: kVA / customer | AC59: Number of spans | AE59: number | AF59: number
B60: CPI | C60: CPI | N60: Line rebuild over existing route - single circuit | O60: Circuit line length in km | P60: 0's | Q60: 0's | R60: 0's | S60: 0's | T60: 0's | U60: km | V60: km | W60: Length of vegetation corridors | X60: $0s | Y60: 0's | Z60: interruptions/customer | AA60: interruptions/customer | AC60: Number of spans | AE60: number | AF60: number
B61: EB | C61: ECONOMIC BENCHMARKING | E61: =LEFT(dms_SingleYear_FinalYear_Result,2)&RIGHT(dms_SingleYear_FinalYear_Result,2) -> noIN | F61: =LEFT(dms_SingleYear_FinalYear_Result,2)&RIGHT(dms_SingleYear_FinalYear_Result,2) | H61: Formula errors are OK | N61: Line rebuild over existing route - dual circuit | O61: Number | P61: total spend $0s | Q61: total spend $0s | R61: total spend $0s | S61: total spend $0s | T61: (per cent) | U61: 0's | V61: 0's | W61: Average number of trees per maintenance span | AC61: Number of spans | AE61: number | AF61: (per cent)
B62: PTRM | C62: POST TAX REVENUE MODEL | E62: =LEFT(dms_MultiYear_FinalYear_Result,2)&RIGHT(dms_MultiYear_FinalYear_Result,2) -> 2025 | F62: =LEFT(dms_MultiYear_FinalYear_Result,2)&RIGHT(dms_MultiYear_FinalYear_Result,2) | N62: Reconductor - Single circuit | O62: Number | P62: net circuit km added | Q62: net circuit km added | R62: net circuit km added | S62: net circuit km added | U62: years | V62: years | W62: Average frequency of cutting cycle | AC62: Years | AE62: number
B63: Reset | C63: REGULATORY REPORTING STATEMENT | E63: =LEFT(dms_MultiYear_FinalYear_Result,2)&RIGHT(dms_MultiYear_FinalYear_Result,2) -> 2025 | F63: =LEFT(dms_MultiYear_FinalYear_Result,2)&RIGHT(dms_MultiYear_FinalYear_Result,2) | H63: Formula errors are OK | N63: Reconductor - Dual circuit | O63: Number | P63: total spend $0s | Q63: total spend $0s | R63: total spend $0s | S63: total spend $0s | AC63: Years | AE63: number
B64: RFM | C64: ROLL FORWARD MODEL | E64: =LEFT(dms_CRCP_FinalYear_Result,2)&RIGHT(dms_CRCP_FinalYear_Result,2) -> 2020 | F64: =LEFT(dms_CRCP_FinalYear_Result,2)&RIGHT(dms_CRCP_FinalYear_Result,2) | N64: Other | P64: net circuit km added | Q64: net circuit km added | R64: net circuit km added | S64: net circuit km added | AC64: Trees | AE64: number
B65: WACC | C65: WEIGHTED AVERAGE COST OF CAPITAL | E65: =LEFT(dms_MultiYear_FinalYear_Result,2)&RIGHT(dms_MultiYear_FinalYear_Result,2) -> 2025 | F65: =LEFT(dms_MultiYear_FinalYear_Result,2)&RIGHT(dms_MultiYear_FinalYear_Result,2) | P65: total spend $0s | Q65: total spend $0s | R65: total spend $0s | S65: total spend $0s | AC65: Trees | AE65: number
P66: 0's | R66: $0s | AC66: Defects | AE66: number
B67: dms_DataQuality_List | P67: 0's | AC67: Defects | AE67: number
B68: Actual | P68: 0's | AC68: Spans | AE68: number
B69: Estimate | P69: $0s | AC69: km | AE69: (per cent)
B70: Consolidated | AC70: Spans | AE70: (per cent)
B71: Recast
B72: Public
K73: STYLES IN USE | O73: For PTRM files - this field set the text for the named range "DMS_Xfactor" which in all cases is simply the text "x factors" - this saves putting in each old gas PTRM file | S73: for RFMs | Z73: for TNSP only | AD73: for DNSP & TNSP
B74: For all files either AER or business needs to be able to specify the type of submission | C74: For PTRM & RFM templates we must provide a choice in case they change their form of control - otherwise it is drawn from the business specific lookup table above. | J74: dms_1 | O74: DMS_Xfactor | S74: dms_Beg | T74: dms_Mid | U74: dms_End | Z74: dms_030601_01_UOM | AB74: dms_030701_01_UOM | AC74: dms_030702_01_UOM | AD74: dms_EB_RAB_PIT
B75: dms_SourceList | C75: dms_FormControl_Choices | J75: dms_2 | O75: x factors | S75: Beginning of year | T75: Mid year | U75: End of Year | Z75: % | AB75: Number of spans | AC75: km | AD75: Beginning of year
B76: After appeal | C76: Revenue cap | J76: dms_3 | Z76: number | AB76: Years | AC76: % | AD76: End of year
B77: Draft decision | C77: Revenue yield | J77: dms_4 | S77: for PTRMs | Z77: number | AB77: Trees | AC77: km | AD77: End of year
B78: Final decision | C78: Weighted average price cap | J78: dms_5 | S78: dms_PTRM_RAB_PIT | T78: dms_PTRM_TAB_PIT | Z78: % | AB78: Defects | AC78: number | AD78: End of year
B79: PTRM update 1 | J79: dms_NUM | S79: Beginning of year | T79: Beginning of year | Z79: number | AB79: Number of spans | AD79: End of year
B80: PTRM update 2 | J80: dms_NUM% | S80: End of year | T80: End of year | Z80: number | AB80: km | AD80: End of year
B81: PTRM update 3 | J81: dms_Row_Locked | S81: End of year | T81: End of year | Z81: % | AB81: km
B82: PTRM update 4 | J82: dms_Row1 | S82: End of year | T82: End of year | Z82: number | AB82: Number of spans
B83: PTRM update 5 | J83: dms_Row2 | S83: End of year | Z83: number
B84: PTRM update 6 | J84: dms_T1 | Z84: %
B85: PTRM update 7 | J85: dms_T2 | Z85: number
B86: Regulatory proposal | J86: dms_BH | Z86: %
B87: Reporting | J87: dms_BY1 | Z87: number
B88: Revised regulatory proposal | J88: dms_BY2 | Z88: %
J89: dms_GH | Z89: number
J90: dms_GY1
J91: dms_GY2
B93: Reason for interruption | C93: dms_Reason_Interruption_Detailed | D93: dms_Reason_Interruption | E93: dms_STPIS_Exclusion_List | F93: dms_020301_ProjectType_List | G93: dms_020302_ProjectType_List
B94: Animal | C94: Animal impact | D94: Animal | E94: Weather | F94: New substation establishment | G94: New line on new route - single circuit
C95: Animal nesting/burrowing, etc and other | D95: Asset failure | E95: Equipment failure | F95: Capacity upgrade | G95: New line on new route - dual circuit
C96: Other | D96: Other | E96: Operational error | F96: Voltage upgrade | G96: New line on new route - other
B97: Asset failure | C97: LV | D97: Overloads | E97: Vegetation | F97: Other | G97: Line rebuild over existing route - single circuit
C98: Distribution substation | D98: Planned | E98: Animals | G98: Line rebuild over existing route - dual circuit
C99: HV | D99: Network business | E99: Third party impacts | G99: Reconductor - Single circuit
C100: Zone substation | D100: Third party | E100: Transmission failure | G100: Reconductor - Dual circuit
C101: Subtransmission | D101: Unknown | E101: Load shedding | G101: Reconductor - Other
B102: Other | C102: insert description of 'other' | D102: Vegetation | E102: Inter-distributor connection failure | G102: Line upgrade - raising/retensoring
B103: Overloads | C103: - | D103: Weather | E103: Other | G103: Line upgrade - voltage upgrade
B104: Planned | C104: - | D104: 2 - STPIS Exclusion (3.3)(a) | G104: Line upgrade - capacity
B105: Network business | C105: Network error | D105: 3 - STPIS Exclusion (3.3)(a) | G105: String spare circuit
C106: Switching and protection error | D106: 4 - STPIS Exclusion (3.3)(a) | G106: Other
B107: Third party | C107: Fire | D107: 5 - STPIS Exclusion (3.3)(a)
C108: Other | D108: 6 - STPIS Exclusion (3.3)(a)
C109: Dig-in | D109: 7 - STPIS Exclusion (3.3)(a)
C110: Unauthorised access
C111: Vehicle impact
B112: Unknown | C112: Unknown
B113: Vegetation | C113: Blow-in/Fall-in - NSP responsibility
C114: Grow-in - NSP responsibility
C115: Blow-in/Fall-in - Other responsible party
C116: Grow-in - Other responsible party
B117: Weather
B118: 2 - STPIS Exclusion (3.3)(a)
B119: 3 - STPIS Exclusion (3.3)(a)
B120: 4 - STPIS Exclusion (3.3)(a)
B121: 5 - STPIS Exclusion (3.3)(a)
B122: 6 - STPIS Exclusion (3.3)(a)
B123: 7 - STPIS Exclusion (3.3)(a)
P128: The first row in these tables always refers to CRY in either it's financial or calendar format.
P129: The correct column headings will be correctly generated in the relevant worksheets in Recast RIN templates
B131: These are indeces and lookup values for various dates. All step from the value placed in FRCP_y1 on the business and other details worksheet | O131: These date tables are currently used in the Recast templates to provide column headings and conditional formatting
B132: dms_FRCPlength_Num_List | C132: dms_FinalYear_List | D132: dms_CRCPlength_Num_List | E132: dms_CFinalYear_List | F132: dms_FRCP_years | H132: dms_CRCP_years | J132: dms_CRCP_index | L132: dms_Financial_Years | M132: dms_Calendar_Years | O132: CRY from input cell on business sheet | P132: CRY - financial | Q132: dms_FinYears | R132: CRY calendar | S132: dms_CalYears
B133: 1 | C133: dms_FRCP_y1 | D133: 1 | E133: CRCP_y1 | F133: =FRCP_y1 -> 2020-21 | G133: dms_FRCP_y1 | H133: =IF(dms_RPT="financial",VALUE(LEFT(dms_FRCP_y1,4)-1)&"-"&TEXT(VALUE(MID(dms_FRCP_y1,3,2)),"00"),VALUE(LEFT(dms_FRCP_y1,4)-1)) -> 2019-20 | I133: dms_CRCP_yZ | J133: 1 | L133: 2005-06 | M133: 2006 | O133: =CRY -> 2020-21 | P133: =CRY -> 2020-21 | Q133: dms_CRYf_y1 | R133: =CRY -> 2020-21 | S133: dms_CRYc_y1
B134: 2 | C134: dms_FRCP_y2 | D134: 2 | E134: CRCP_y2 | F134: =IF(dms_RPT="financial",VALUE(LEFT(dms_FRCP_y1,4)+1)&"-"&TEXT(VALUE(RIGHT(dms_FRCP_y1,2)+1),"00"),VALUE(LEFT(dms_FRCP_y1,4)+1)) -> 2021-22 | G134: dms_FRCP_y2 | H134: =IF(dms_RPT="financial",VALUE(LEFT(dms_CRCP_yZ,4)-1)&"-"&TEXT(VALUE(MID(dms_CRCP_yZ,3,2)),"00"),VALUE(LEFT(dms_CRCP_yZ,4)-1)) -> 2018-19 | I134: dms_CRCP_yY | J134: 2 | L134: 2006-07 | M134: 2007 | P134: =VALUE(LEFT(dms_CRYf_y1,4)+1)&"-"&TEXT(MID(dms_CRYf_y1,3,2)+2,"00") -> 2021-22 | Q134: dms_CRYf_y2 | R134: =VALUE(LEFT(dms_CRYc_y1,4)+1) -> 2021 | S134: dms_CRYc_y2
B135: 3 | C135: dms_FRCP_y3 | D135: 3 | E135: CRCP_y3 | F135: =IF(dms_RPT="financial",VALUE(LEFT(dms_FRCP_y2,4)+1)&"-"&TEXT(VALUE(RIGHT(dms_FRCP_y2,2)+1),"00"),VALUE(LEFT(dms_FRCP_y2,4)+1)) -> 2022-23 | G135: dms_FRCP_y3 | H135: =IF(dms_RPT="financial",VALUE(LEFT(dms_CRCP_yY,4)-1)&"-"&TEXT(VALUE(MID(dms_CRCP_yY,3,2)),"00"),VALUE(LEFT(dms_CRCP_yY,4)-1)) -> 2017-18 | I135: dms_CRCP_yX | J135: 3 | L135: 2007-08 | M135: 2008 | P135: =VALUE(LEFT(dms_CRYf_y2,4)+1)&"-"&TEXT(MID(dms_CRYf_y2,3,2)+2,"00") -> 2022-23 | Q135: dms_CRYf_y3 | R135: =VALUE(LEFT(dms_CRYc_y2,4)+1) -> 2022 | S135: dms_CRYc_y3
B136: 4 | C136: dms_FRCP_y4 | D136: 4 | E136: CRCP_y4 | F136: =IF(dms_RPT="financial",VALUE(LEFT(dms_FRCP_y3,4)+1)&"-"&TEXT(VALUE(RIGHT(dms_FRCP_y3,2)+1),"00"),VALUE(LEFT(dms_FRCP_y3,4)+1)) -> 2023-24 | G136: dms_FRCP_y4 | H136: =IF(dms_RPT="financial",VALUE(LEFT(dms_CRCP_yX,4)-1)&"-"&TEXT(VALUE(MID(dms_CRCP_yX,3,2)),"00"),VALUE(LEFT(dms_CRCP_yX,4)-1)) -> 2016-17 | I136: dms_CRCP_yW | J136: 4 | L136: 2008-09 | M136: 2009 | P136: =VALUE(LEFT(dms_CRYf_y3,4)+1)&"-"&TEXT(MID(dms_CRYf_y3,3,2)+2,"00") -> 2023-24 | Q136: dms_CRYf_y4 | R136: =VALUE(LEFT(dms_CRYc_y3,4)+1) -> 2023 | S136: dms_CRYc_y4
B137: 5 | C137: dms_FRCP_y5 | D137: 5 | E137: CRCP_y5 | F137: =IF(dms_RPT="financial",VALUE(LEFT(dms_FRCP_y4,4)+1)&"-"&TEXT(VALUE(RIGHT(dms_FRCP_y4,2)+1),"00"),VALUE(LEFT(dms_FRCP_y4,4)+1)) -> 2024-25 | G137: dms_FRCP_y5 | H137: =IF(dms_RPT="financial",VALUE(LEFT(dms_CRCP_yW,4)-1)&"-"&TEXT(VALUE(MID(dms_CRCP_yW,3,2)),"00"),VALUE(LEFT(dms_CRCP_yW,4)-1)) -> 2015-16 | I137: dms_CRCP_yV | J137: 5 | L137: 2009-10 | M137: 2010 | P137: =VALUE(LEFT(dms_CRYf_y4,4)+1)&"-"&TEXT(MID(dms_CRYf_y4,3,2)+2,"00") -> 2024-25 | Q137: dms_CRYf_y5 | R137: =VALUE(LEFT(dms_CRYc_y4,4)+1) -> 2024 | S137: dms_CRYc_y5
B138: 6 | C138: dms_FRCP_y6 | D138: 6 | E138: CRCP_y6 | F138: =IF(dms_RPT="financial",VALUE(LEFT(dms_FRCP_y5,4)+1)&"-"&TEXT(VALUE(RIGHT(dms_FRCP_y5,2)+1),"00"),VALUE(LEFT(dms_FRCP_y5,4)+1)) -> 2025-26 | G138: dms_FRCP_y6 | H138: =IF(dms_RPT="financial",VALUE(LEFT(dms_CRCP_yV,4)-1)&"-"&TEXT(VALUE(MID(dms_CRCP_yV,3,2)),"00"),VALUE(LEFT(dms_CRCP_yV,4)-1)) -> 2014-15 | I138: dms_CRCP_yU | J138: 6 | L138: 2010-11 | M138: 2011 | P138: =VALUE(LEFT(dms_CRYf_y5,4)+1)&"-"&TEXT(MID(dms_CRYf_y5,3,2)+2,"00") -> 2025-26 | Q138: dms_CRYf_y6 | R138: =VALUE(LEFT(dms_CRYc_y5,4)+1) -> 2025 | S138: dms_CRYc_y6
B139: 7 | C139: dms_FRCP_y7 | D139: 7 | E139: CRCP_y7 | F139: =IF(dms_RPT="financial",VALUE(LEFT(dms_FRCP_y6,4)+1)&"-"&TEXT(VALUE(RIGHT(dms_FRCP_y6,2)+1),"00"),VALUE(LEFT(dms_FRCP_y6,4)+1)) -> 2026-27 | G139: dms_FRCP_y7 | H139: =IF(dms_RPT="financial",VALUE(LEFT(dms_CRCP_yU,4)-1)&"-"&TEXT(VALUE(MID(dms_CRCP_yU,3,2)),"00"),VALUE(LEFT(dms_CRCP_yU,4)-1)) -> 2013-14 | I139: dms_CRCP_yT | J139: 7 | L139: 2011-12 | M139: 2012 | P139: =VALUE(LEFT(dms_CRYf_y6,4)+1)&"-"&TEXT(MID(dms_CRYf_y6,3,2)+2,"00") -> 2026-27 | Q139: dms_CRYf_y7 | R139: =VALUE(LEFT(dms_CRYc_y6,4)+1) -> 2026 | S139: dms_CRYc_y7
B140: 8 | C140: dms_FRCP_y8 | D140: 8 | E140: CRCP_y8 | F140: =IF(dms_RPT="financial",VALUE(LEFT(dms_FRCP_y7,4)+1)&"-"&TEXT(VALUE(RIGHT(dms_FRCP_y7,2)+1),"00"),VALUE(LEFT(dms_FRCP_y7,4)+1)) -> 2027-28 | G140: dms_FRCP_y8 | H140: =IF(dms_RPT="financial",VALUE(LEFT(dms_CRCP_yT,4)-1)&"-"&TEXT(VALUE(MID(dms_CRCP_yT,3,2)),"00"),VALUE(LEFT(dms_CRCP_yT,4)-1)) -> 2012-13 | I140: dms_CRCP_yS | J140: 8 | L140: 2012-13 | M140: 2013 | P140: =VALUE(LEFT(dms_CRYf_y7,4)+1)&"-"&TEXT(MID(dms_CRYf_y7,3,2)+2,"00") -> 2027-28 | Q140: dms_CRYf_y8 | R140: =VALUE(LEFT(dms_CRYc_y7,4)+1) -> 2027 | S140: dms_CRYc_y8
B141: 9 | C141: dms_FRCP_y9 | D141: 9 | E141: CRCP_y9 | F141: =IF(dms_RPT="financial",VALUE(LEFT(dms_FRCP_y8,4)+1)&"-"&TEXT(VALUE(RIGHT(dms_FRCP_y8,2)+1),"00"),VALUE(LEFT(dms_FRCP_y8,4)+1)) -> 2028-29 | G141: dms_FRCP_y9 | H141: =IF(dms_RPT="financial",VALUE(LEFT(dms_CRCP_yS,4)-1)&"-"&TEXT(VALUE(MID(dms_CRCP_yS,3,2)),"00"),VALUE(LEFT(dms_CRCP_yS,4)-1)) -> 2011-12 | I141: dms_CRCP_yR | J141: 9 | L141: 2013-14 | M141: 2014 | P141: =VALUE(LEFT(dms_CRYf_y8,4)+1)&"-"&TEXT(MID(dms_CRYf_y8,3,2)+2,"00") -> 2028-29 | Q141: dms_CRYf_y9 | R141: =VALUE(LEFT(dms_CRYc_y8,4)+1) -> 2028 | S141: dms_CRYc_y9
B142: 10 | C142: dms_FRCP_y10 | D142: 10 | E142: CRCP_y10 | F142: =IF(dms_RPT="financial",VALUE(LEFT(dms_FRCP_y9,4)+1)&"-"&TEXT(VALUE(RIGHT(dms_FRCP_y9,2)+1),"00"),VALUE(LEFT(dms_FRCP_y9,4)+1)) -> 2029-30 | G142: dms_FRCP_y10 | H142: =IF(dms_RPT="financial",VALUE(LEFT(dms_CRCP_yR,4)-1)&"-"&TEXT(VALUE(MID(dms_CRCP_yR,3,2)),"00"),VALUE(LEFT(dms_CRCP_yR,4)-1)) -> 2010-11 | I142: dms_CRCP_yQ | J142: 10 | L142: 2014-15 | M142: 2015 | P142: =VALUE(LEFT(dms_CRYf_y9,4)+1)&"-"&TEXT(MID(dms_CRYf_y9,3,2)+2,"00") -> 2029-30 | Q142: dms_CRYf_y10 | R142: =VALUE(LEFT(dms_CRYc_y9,4)+1) -> 2029 | S142: dms_CRYc_y10
B143: 11 | C143: dms_FRCP_y11 | D143: 11 | E143: CRCP_y11 | F143: =IF(dms_RPT="financial",VALUE(LEFT(dms_FRCP_y10,4)+1)&"-"&TEXT(VALUE(RIGHT(dms_FRCP_y10,2)+1),"00"),VALUE(LEFT(dms_FRCP_y10,4)+1)) -> 2030-31 | G143: dms_FRCP_y11 | H143: =IF(dms_RPT="financial",VALUE(LEFT(dms_CRCP_yQ,4)-1)&"-"&TEXT(VALUE(MID(dms_CRCP_yQ,3,2)),"00"),VALUE(LEFT(dms_CRCP_yQ,4)-1)) -> 2009-10 | I143: dms_CRCP_yP | J143: 11 | L143: 2015-16 | M143: 2016 | P143: =VALUE(LEFT(dms_CRYf_y10,4)+1)&"-"&TEXT(MID(dms_CRYf_y10,3,2)+2,"00") -> 2030-31 | Q143: dms_CRYf_y11 | R143: =VALUE(LEFT(dms_CRYc_y10,4)+1) -> 2030 | S143: dms_CRYc_y11
B144: 12 | C144: dms_FRCP_y12 | D144: 12 | E144: CRCP_y12 | F144: =IF(dms_RPT="financial",VALUE(LEFT(dms_FRCP_y11,4)+1)&"-"&TEXT(VALUE(RIGHT(dms_FRCP_y11,2)+1),"00"),VALUE(LEFT(dms_FRCP_y11,4)+1)) -> 2031-32 | G144: dms_FRCP_y12 | H144: =IF(dms_RPT="financial",VALUE(LEFT(dms_CRCP_yP,4)-1)&"-"&TEXT(VALUE(MID(dms_CRCP_yP,3,2)),"00"),VALUE(LEFT(dms_CRCP_yP,4)-1)) -> 2008-09 | I144: dms_CRCP_yO | J144: 12 | L144: 2016-17 | M144: 2017 | P144: =VALUE(LEFT(dms_CRYf_y11,4)+1)&"-"&TEXT(MID(dms_CRYf_y11,3,2)+2,"00") -> 2031-32 | Q144: dms_CRYf_y12 | R144: =VALUE(LEFT(dms_CRYc_y11,4)+1) -> 2031 | S144: dms_CRYc_y12
B145: 13 | C145: dms_FRCP_y13 | D145: 13 | E145: CRCP_y13 | F145: =IF(dms_RPT="financial",VALUE(LEFT(dms_FRCP_y12,4)+1)&"-"&TEXT(VALUE(RIGHT(dms_FRCP_y12,2)+1),"00"),VALUE(LEFT(dms_FRCP_y12,4)+1)) -> 2032-33 | G145: dms_FRCP_y13 | H145: =IF(dms_RPT="financial",VALUE(LEFT(dms_CRCP_yO,4)-1)&"-"&TEXT(VALUE(MID(dms_CRCP_yO,3,2)),"00"),VALUE(LEFT(dms_CRCP_yO,4)-1)) -> 2007-08 | I145: dms_CRCP_yN | J145: 13 | L145: 2017-18 | M145: 2018 | P145: =VALUE(LEFT(dms_CRYf_y12,4)+1)&"-"&TEXT(MID(dms_CRYf_y12,3,2)+2,"00") -> 2032-33 | Q145: dms_CRYf_y13 | R145: =VALUE(LEFT(dms_CRYc_y12,4)+1) -> 2032 | S145: dms_CRYc_y13
B146: 14 | C146: dms_FRCP_y14 | D146: 14 | E146: CRCP_y14 | F146: =IF(dms_RPT="financial",VALUE(LEFT(dms_FRCP_y13,4)+1)&"-"&TEXT(VALUE(RIGHT(dms_FRCP_y13,2)+1),"00"),VALUE(LEFT(dms_FRCP_y13,4)+1)) -> 2033-34 | G146: dms_FRCP_y14 | H146: =IF(dms_RPT="financial",VALUE(LEFT(dms_CRCP_yN,4)-1)&"-"&TEXT(VALUE(MID(dms_CRCP_yN,3,2)),"00"),VALUE(LEFT(dms_CRCP_yN,4)-1)) -> 2006-07 | I146: dms_CRCP_yM | J146: 14 | L146: 2018-19 | M146: 2019 | P146: =VALUE(LEFT(dms_CRYf_y13,4)+1)&"-"&TEXT(MID(dms_CRYf_y13,3,2)+2,"00") -> 2033-34 | Q146: dms_CRYf_y14 | R146: =VALUE(LEFT(dms_CRYc_y13,4)+1) -> 2033 | S146: dms_CRYc_y14
B147: 15 | C147: dms_FRCP_y15 | D147: 15 | E147: CRCP_y15 | F147: =IF(dms_RPT="financial",VALUE(LEFT(dms_FRCP_y14,4)+1)&"-"&TEXT(VALUE(RIGHT(dms_FRCP_y14,2)+1),"00"),VALUE(LEFT(dms_FRCP_y14,4)+1)) -> 2034-35 | G147: dms_FRCP_y15 | H147: =IF(dms_RPT="financial",VALUE(LEFT(dms_CRCP_yM,4)-1)&"-"&TEXT(VALUE(MID(dms_CRCP_yM,3,2)),"00"),VALUE(LEFT(dms_CRCP_yM,4)-1)) -> 2005-06 | I147: dms_CRCP_yL | J147: 15 | L147: 2019-20 | M147: 2020 | P147: =VALUE(LEFT(dms_CRYf_y14,4)+1)&"-"&TEXT(MID(dms_CRYf_y14,3,2)+2,"00") -> 2034-35 | Q147: dms_CRYf_y15 | R147: =VALUE(LEFT(dms_CRYc_y14,4)+1) -> 2034 | S147: dms_CRYc_y15
L148: 2020-21 | M148: 2021 | P148: =VALUE(LEFT(dms_CRYf_y15,4)+1)&"-"&TEXT(MID(dms_CRYf_y15,3,2)+2,"00") -> 2035-36 | Q148: dms_CRYf_y16 | R148: =VALUE(LEFT(dms_CRYc_y15,4)+1) -> 2035 | S148: dms_CRYc_y16
B149: These are drop down lists for businesses to select the correct FRCP_y1 on the business and other details worksheet. This also populates the column headings in the worksheets | L149: 2021-22 | M149: 2022 | P149: =VALUE(LEFT(dms_CRYf_y16,4)+1)&"-"&TEXT(MID(dms_CRYf_y16,3,2)+2,"00") -> 2036-37 | Q149: dms_CRYf_y17 | R149: =VALUE(LEFT(dms_CRYc_y16,4)+1) -> 2036 | S149: dms_CRYc_y17
B150: dms_RCP_fyear_list | C150: dms_CRY_ListF | D150: dms_CRY_ListC | E150: dms_RCP_cyear_list | F150: dms_FRCP_fyear_list | G150: dms_FRCP_ListF | H150: dms_FRCP_ListC | I150: dms_FRCP_cyear_list | L150: 2022-23 | M150: 2023 | P150: =VALUE(LEFT(dms_CRYf_y17,4)+1)&"-"&TEXT(MID(dms_CRYf_y17,3,2)+2,"00") -> 2037-38 | Q150: dms_CRYf_y18 | R150: =VALUE(LEFT(dms_CRYc_y17,4)+1) -> 2037 | S150: dms_CRYc_y18
B151: dms_y1 | C151: =CRY -> 2020-21 | D151: 2006 | E151: dms_cy1 | F151: dms_frcp_fy1 | G151: 2010-11 | H151: 2011 | I151: dms_crcp_cy1 | L151: 2023-24 | M151: 2024 | P151: =VALUE(LEFT(dms_CRYf_y18,4)+1)&"-"&TEXT(MID(dms_CRYf_y18,3,2)+2,"00") -> 2038-39 | Q151: dms_CRYf_y19 | R151: =VALUE(LEFT(dms_CRYc_y18,4)+1) -> 2038 | S151: dms_CRYc_y19
B152: dms_y2 | C152: =IF(dms_RPT="financial",VALUE(LEFT(CRY,4)+1)&"-"&TEXT(MID(CRY,3,2)+2,"00"),VALUE(LEFT(CRY,4)+1)) -> 2021-22 | D152: 2007 | E152: dms_cy2 | F152: dms_frcp_fy2 | G152: 2011-12 | H152: 2012 | I152: dms_crcp_cy2 | L152: 2024-25 | M152: 2025 | P152: =VALUE(LEFT(dms_CRYf_y19,4)+1)&"-"&TEXT(MID(dms_CRYf_y19,3,2)+2,"00") -> 2039-40 | Q152: dms_CRYf_y20 | R152: =VALUE(LEFT(dms_CRYc_y19,4)+1) -> 2039 | S152: dms_CRYc_y20
B153: dms_y3 | C153: =IF(dms_RPT="financial",VALUE(LEFT(dms_fy2,4)+1)&"-"&TEXT(MID(dms_fy2,3,2)+2,"00"),VALUE(LEFT(dms_fy2,4)+1)) -> 2022-23 | D153: 2008 | E153: dms_cy3 | F153: dms_frcp_fy3 | G153: 2012-13 | H153: 2013 | I153: dms_crcp_cy3 | L153: 2025-26 | M153: 2026
B154: dms_y4 | C154: =IF(dms_RPT="financial",VALUE(LEFT(dms_fy3,4)+1)&"-"&TEXT(MID(dms_fy3,3,2)+2,"00"),VALUE(LEFT(dms_fy3,4)+1)) -> 2023-24 | D154: 2009 | E154: dms_cy4 | F154: dms_frcp_fy4 | G154: 2013-14 | H154: 2014 | I154: dms_crcp_cy4 | L154: 2026-27 | M154: 2027
B155: dms_y5 | C155: =IF(dms_RPT="financial",VALUE(LEFT(dms_fy4,4)+1)&"-"&TEXT(MID(dms_fy4,3,2)+2,"00"),VALUE(LEFT(dms_fy4,4)+1)) -> 2024-25 | D155: 2010 | E155: dms_cy5 | F155: dms_frcp_fy5 | G155: 2014-15 | H155: 2015 | I155: dms_crcp_cy5 | L155: 2027-28 | M155: 2028
B156: dms_y6 | C156: =IF(dms_RPT="financial",VALUE(LEFT(dms_fy5,4)+1)&"-"&TEXT(MID(dms_fy5,3,2)+2,"00"),VALUE(LEFT(dms_fy5,4)+1)) -> 2025-26 | D156: 2011 | E156: dms_cy6 | F156: dms_frcp_fy6 | G156: 2015-16 | H156: 2016 | I156: dms_crcp_cy6 | L156: 2028-29 | M156: 2029
B157: dms_y7 | C157: =IF(dms_RPT="financial",VALUE(LEFT(dms_fy6,4)+1)&"-"&TEXT(MID(dms_fy6,3,2)+2,"00"),VALUE(LEFT(dms_fy6,4)+1)) -> 2026-27 | D157: 2012 | E157: dms_cy7 | F157: dms_frcp_fy7 | G157: 2016-17 | H157: 2017 | I157: dms_crcp_cy7 | L157: 2029-30 | M157: 2030
B158: dms_y8 | C158: =IF(dms_RPT="financial",VALUE(LEFT(dms_fy7,4)+1)&"-"&TEXT(MID(dms_fy7,3,2)+2,"00"),VALUE(LEFT(dms_fy7,4)+1)) -> 2027-28 | D158: 2013 | E158: dms_cy8 | F158: dms_frcp_fy8 | G158: 2017-18 | H158: 2018 | I158: dms_crcp_cy8 | L158: 2030-31 | M158: 2031
B159: dms_y9 | C159: =IF(dms_RPT="financial",VALUE(LEFT(dms_fy8,4)+1)&"-"&TEXT(MID(dms_fy8,3,2)+2,"00"),VALUE(LEFT(dms_fy8,4)+1)) -> 2028-29 | D159: 2014 | E159: dms_cy9 | F159: dms_frcp_fy9 | G159: 2018-19 | H159: 2019 | I159: dms_crcp_cy9 | L159: 2031-32 | M159: 2032
B160: dms_y10 | C160: =IF(dms_RPT="financial",VALUE(LEFT(dms_fy9,4)+1)&"-"&TEXT(MID(dms_fy9,3,2)+2,"00"),VALUE(LEFT(dms_fy9,4)+1)) -> 2029-30 | D160: 2015 | E160: dms_cy10 | F160: dms_frcp_fy10 | G160: 2019-20 | H160: 2020 | I160: dms_crcp_cy10 | L160: 2032-33 | M160: 2033
B161: dms_y11 | C161: =IF(dms_RPT="financial",VALUE(LEFT(dms_fy10,4)+1)&"-"&TEXT(MID(dms_fy10,3,2)+2,"00"),VALUE(LEFT(dms_fy10,4)+1)) -> 2030-31 | D161: 2016 | E161: dms_cy11 | F161: dms_frcp_fy11 | G161: 2020-21 | H161: 2021 | I161: dms_crcp_cy11 | L161: 2033-34 | M161: 2034
B162: dms_y12 | C162: =IF(dms_RPT="financial",VALUE(LEFT(dms_fy11,4)+1)&"-"&TEXT(MID(dms_fy11,3,2)+2,"00"),VALUE(LEFT(dms_fy11,4)+1)) -> 2031-32 | D162: 2017 | E162: dms_cy12 | F162: dms_frcp_fy12 | G162: 2021-22 | H162: 2022 | I162: dms_crcp_cy12 | L162: 2034-35 | M162: 2035
B163: dms_y13 | C163: =IF(dms_RPT="financial",VALUE(LEFT(dms_fy12,4)+1)&"-"&TEXT(MID(dms_fy12,3,2)+2,"00"),VALUE(LEFT(dms_fy12,4)+1)) -> 2032-33 | D163: 2018 | E163: dms_cy13 | F163: dms_frcp_fy13 | G163: 2022-23 | H163: 2023 | I163: dms_crcp_cy13 | L163: 2035-36 | M163: 2036
B164: dms_y14 | C164: =IF(dms_RPT="financial",VALUE(LEFT(dms_fy13,4)+1)&"-"&TEXT(MID(dms_fy13,3,2)+2,"00"),VALUE(LEFT(dms_fy13,4)+1)) -> 2033-34 | D164: 2019 | E164: dms_cy14 | F164: dms_frcp_fy14 | G164: 2023-24 | H164: 2024 | I164: dms_crcp_cy14
B165: dms_y15 | C165: =IF(dms_RPT="financial",VALUE(LEFT(dms_fy14,4)+1)&"-"&TEXT(MID(dms_fy14,3,2)+2,"00"),VALUE(LEFT(dms_fy14,4)+1)) -> 2034-35 | D165: 2020 | E165: dms_cy15 | F165: dms_frcp_fy15 | G165: 2024-25 | H165: 2025 | I165: dms_crcp_cy15
B166: dms_y16 | C166: =IF(dms_RPT="financial",VALUE(LEFT(dms_fy15,4)+1)&"-"&TEXT(MID(dms_fy15,3,2)+2,"00"),VALUE(LEFT(dms_fy15,4)+1)) -> 2035-36 | D166: 2021 | E166: dms_cy16
B167: dms_y17 | C167: =IF(dms_RPT="financial",VALUE(LEFT(dms_fy16,4)+1)&"-"&TEXT(MID(dms_fy16,3,2)+2,"00"),VALUE(LEFT(dms_fy16,4)+1)) -> 2036-37 | D167: 2022 | E167: dms_cy17
B168: dms_y18 | C168: =IF(dms_RPT="financial",VALUE(LEFT(dms_fy17,4)+1)&"-"&TEXT(MID(dms_fy17,3,2)+2,"00"),VALUE(LEFT(dms_fy17,4)+1)) -> 2037-38 | D168: 2023 | E168: dms_cy18
B169: dms_y19 | C169: =IF(dms_RPT="financial",VALUE(LEFT(dms_fy18,4)+1)&"-"&TEXT(MID(dms_fy18,3,2)+2,"00"),VALUE(LEFT(dms_fy18,4)+1)) -> 2038-39 | D169: 2024 | E169: dms_cy19
B170: dms_y20 | C170: =IF(dms_RPT="financial",VALUE(LEFT(dms_fy19,4)+1)&"-"&TEXT(MID(dms_fy19,3,2)+2,"00"),VALUE(LEFT(dms_fy19)+1)) -> 2039-40 | D170: 2025 | E170: dms_cy20
B176: These "row descriptions" are the column headings in the various templates but become row descriptions in the ETL process
C177: Table 6.3 sustained interruptions - row descriptions
C178: dms_060301_CustNo_Affected_Row | D178: dms_060301_Avg_Duration_Sustained_Int_Row | E178: dms_060301_Effect_unplanned_SAIDI_Row | F178: dms_060301_Effect_unplanned_SAIFI_Row
C179: Number of customers affected by the interruption | D179: Average duration of sustained customer interruption | E179: Effect on unplanned SAIDI | F179: Effect on unplanned SAIFI
C183: Table 6.1 telephone answering - row descriptions and start date
C184: dms_060101_Rows | D184: dms_060102_Rows | E184: dms_060101_StartDateTxt
C185: Total number of calls (after removing excluded events) | D185: Number of calls answered within 30 seconds (after excluding excluded events) | E185: =dms_060701_StartDateTxt -> 1-Jul-2018
H189: dms_0603_FeederList | I189: =INDEX(dms_FeederName_1,MATCH(dms_TradingName,dms_TradingName_List)) -> CBD | J189: =INDEX(dms_FeederName_2,MATCH(dms_TradingName,dms_TradingName_List)) -> Urban | K189: =INDEX(dms_FeederName_3,MATCH(dms_TradingName,dms_TradingName_List)) -> Short rural | L189: =INDEX(dms_FeederName_4,MATCH(dms_TradingName,dms_TradingName_List)) -> Long rural
C190: Table 6.7.1 - daily performance data - unplanned - MAIFI -- row descriptions and header named range values
C191: These headings (Lists) are determined from the INDEX/MATCH function on the NSP selected on the Business & other details sheet
B192: dms_060701_Feeder_Header_Lvl4 | C192: =INDEX(dms_FeederName_1,MATCH(dms_TradingName,dms_TradingName_List)) -> CBD | D192: =INDEX(dms_FeederName_1,MATCH(dms_TradingName,dms_TradingName_List)) -> CBD | E192: =INDEX(dms_FeederName_2,MATCH(dms_TradingName,dms_TradingName_List)) -> Urban | F192: =INDEX(dms_FeederName_2,MATCH(dms_TradingName,dms_TradingName_List)) -> Urban | G192: =INDEX(dms_FeederName_3,MATCH(dms_TradingName,dms_TradingName_List)) -> Short rural | H192: =INDEX(dms_FeederName_3,MATCH(dms_TradingName,dms_TradingName_List)) -> Short rural | I192: =INDEX(dms_FeederName_4,MATCH(dms_TradingName,dms_TradingName_List)) -> Long rural | J192: =INDEX(dms_FeederName_4,MATCH(dms_TradingName,dms_TradingName_List)) -> Long rural | K192: =IF((INDEX(dms_FeederName_5,MATCH(dms_TradingName,dms_TradingName_List))=0),"Network",(INDEX(dms_FeederName_5,MATCH(dms_TradingName,dms_TradingName_List)))) -> Network | L192: =IF((INDEX(dms_FeederName_5,MATCH(dms_TradingName,dms_TradingName_List))=0),"Network",(INDEX(dms_FeederName_5,MATCH(dms_TradingName,dms_TradingName_List)))) -> Network | M192: Network | N192: Network
B194: dms_060701_Rows | C194: All events | D194: After removing excluded events | E194: All events | F194: After removing excluded events | G194: All events | H194: After removing excluded events | I194: All events | J194: After removing excluded events | K194: All events | L194: After removing excluded events | M194: All events | N194: After removing excluded events
C195: the number of column headings changes from 10 to 12 depending on the number of feeder categories for the NSP
C200: Table 6.8.1 - row descriptions
C201: dms_060801_01_Rows | D201: dms_060801_02_Rows | E201: dms_060801_03_Rows | F201: dms_060801_04_Rows
C202: Number of interruptions | D202: Duration of interruptions | E202: Total unplanned minutes off supply | F202: Effect on unplanned MAIFI
C207: Table 7.9.4 - market impact component - row descriptions
B208: dms_070904_01_Rows | C208: without exclusions | D208: with exclusions
C214: Use this to add to existing files
C215: ARRs 6.7 STPIS daily performance
C216: dms_060101_Values | D216: dms_060102_Values | E216: dms_060701_Values
C217: dms_LeapYear
C219: ARR's 6.8 STPIS exclusions
C220: dms_060801_Event_Date | D220: dms_060801_OutageID | E220: dms_060801_FeederID | F220: dms_060801_FeederClass | G220: dms_060801_CauseID | H220: dms_060801_01_Values | I220: dms_060801_02_Values | J220: dms_060801_03_Values | K220: dms_060801_Excl_Cat | L220: dms_060801_04_Values
C221: dms_060801_StartCell
C223: CA 6.3 sustained interruptions
C224: dms_060301_Event_Date | D224: dms_060301_Event_Time | E224: dms_060301_AssetID | F224: dms_060301_FeederClass | G224: dms_060301_Reason | H224: dms_060301_DetailedReason | I224: dms_060301_CustNo_Affected_Values | J224: dms_060301_Avg_Duration_Sustained_Int_Values | K224: dms_060301_Effect_unplanned_SAIDI_Values | L224: dms_060301_Effect_unplanned_SAIFI_Values | M224: dms_060301_MED

Sheet Contents
B1: =IF(dms_DataQuality="backcast",INDEX(dms_Worksheet_List,MATCH(dms_Model,dms_Model_List))&" BACKCAST",INDEX(dms_Worksheet_List,MATCH(dms_Model,dms_Model_List))) -> REGULATORY REPORTING STATEMENT
B2: =INDEX(dms_TradingNameFull_List,MATCH(dms_TradingName,dms_TradingName_List)) -> Directlink
B3: =IF(SUM(dms_SingleYear_Model)>0,CRY,CONCATENATE(FRCP_y1," to ",dms_MultiYear_FinalYear_Result)) -> 2020-21 to 2024-25
B4: Contents
E7: 1. Business details | L7: 3. Network information
E12: 2. Expenditure | L12: 7. Other templates

Sheet Instructions
B2: =CONCATENATE(dms_Segment," Network Service Provider") -> Transmission Network Service Provider
B3: =IF(dms_Model="Reset","Regulatory Proposal RIN Template","Annual Reporting RIN") -> Regulatory Proposal RIN Template
C4: =CONCATENATE("This template is to be used by ",dms_TradingName," to fulfil its reporting obligations to the AER.") -> This template is to be used by Directlink to fulfil its reporting obligations to the AER.
C5: INSTRUCTIONS
C6: Complete the Business & other details worksheet before entering data or values in any other worksheets. The Business & other details worksheet is linked to other worksheets within the workbook and automatically generates certain column headings and conditional formatting.
C8: Identifying CONFIDENTIAL INFORMATION: Please use the macro at the top of each worksheet to identify confidential information.
C9: -Do this by selecting the cell or cells that contain confidential information and then run the Mark selected cells as CONFIDENTIAL macro. This will format the cells a specific colour that is identified by the AER's database which in turn marks that information as confidential. -To reverse this, select the cell or cells and run the Return cells to NON-CONFIDENTIAL macro.
C11: UNITS OF MEASURE All amounts are to be unrounded and reported on a one for one basis: that is 1000 is to be entered as '1000'. Applicable units of measure may be identified in the table column headings or row descriptors.
C13: COLOUR CODING OF INPUT / NON-INPUT CELLS:
D14: Yellow = Input cell (mandatory)
D15: Darker yellow = input cell (mandatory)
D16: Orange = input cell (if data available)
D17: Grey = Not applicable/No inputs required
D18: PLEASE DO NOT ENTER TEXT into cells that are to contain numeric data.
C21: WORKSHEET NAVIGATION Many tables in the worksheets have been "grouped" to allow for easy navigation. To ungroup or group data use the outline symbols in the left margin (for Row groupings) or above the columns (for column groupings).
C23: RETURNING COMPLETED RESPONSES Please return two (2) files to the AER: 1. A confidential version which must contain a complete set of all responses with confidential information marked using the Mark selected cells CONFIDENTIAL macro and which has been completed using the locked template file provided by the AER. 2. A public version with confidential information either removed completely or aggregated in some form together with writtten consent to disclose the public version of the response. Use the drop down box on the Business and other details worksheet to identify the file as either confidential ('consolidated') or public.
C25: SUBMITTING AMENDED DATA TO THE AER If an NSP wishes to correct data previously submitted to the AER it should resubmit that data using the original completed submission as the starting point. Please make any necessary changes to the data. Data that is not being amended should be left unchanged. NSPs must identify the reason for the amendments in the Amendment Reason box on the Business and other details worksheet. NSPs may provide further details regarding any amendments in the Amendments worksheet. .
C26: NSP may use Amended Data macro to highlight cells that contain amended data. NB: if data is also CONFIDENTIAL, re-apply the Confidentiality macro after applying the Amended macro
C27: Please resubmit two (2) files - a confidential version and a public version of the amended submission to the AER

Sheet Business & other details
B1: =IF(dms_DataQuality="backcast",INDEX(dms_Worksheet_List,MATCH(dms_Model,dms_Model_List))&" BACKCAST",INDEX(dms_Worksheet_List,MATCH(dms_Model,dms_Model_List))) -> REGULATORY REPORTING STATEMENT
B2: =INDEX(dms_TradingNameFull_List,MATCH(dms_TradingName,dms_TradingName_List)) -> Directlink
B3: =IF(SUM(dms_SingleYear_Model)>0,CONCATENATE(CRY),CONCATENATE(FRCP_y1," to ",dms_MultiYear_FinalYear_Result)) -> 2020-21 to 2024-25
B4: BUSINESS & OTHER DETAILS
B7: Instructions
B8: Complete the following business details regulatory template before entering data or values in any other regulatory template. This regulatory template is linked to other cells within the spreadsheet and automatically generates column headings and conditional formatting to distinguish business specific input and non-input cells.
B10: SUBMISSION PARTICULARS INPUT SHEETS
B12: ENTITY DETAILS
B14: Short name | C14: Directlink | F14: Select business name from drop down list first
B15: ACN / ABN | C15: =INDEX(dms_ABN_List,MATCH(dms_TradingName,dms_TradingName_List)) -> 16779340889
B18: Business address | C18: Address 1 | E18: Level 25
D19: Address 2 | E19: =IF(ISBLANK(INDEX(dms_Addr2_List,MATCH(dms_TradingName,dms_TradingName_List))),"",(INDEX(dms_Addr2_List,MATCH(dms_TradingName,dms_TradingName_List)))) -> 580 George Street
C20: Suburb | E20: =INDEX(dms_Suburb_List,MATCH(dms_TradingName,dms_TradingName_List)) -> SYDNEY
D21: State | E21: =INDEX(dms_State_List,MATCH(dms_TradingName,dms_TradingName_List)) -> NSW | F21: p/code | G21: =INDEX(dms_PostCode_List,MATCH(dms_TradingName,dms_TradingName_List)) -> 2000
B23: Postal address | C23: Address 1 | E23: =INDEX(dms_PAddr1_List,MATCH(dms_TradingName,dms_TradingName_List)) -> PO Box R41
D24: Address 2 | E24: =IF(ISBLANK(INDEX(dms_PAddr2_List,MATCH(dms_TradingName,dms_TradingName_List))),"",(INDEX(dms_PAddr2_List,MATCH(dms_TradingName,dms_TradingName_List)))) -> 
C25: Suburb | E25: =INDEX(dms_PSuburb_List,MATCH(dms_TradingName,dms_TradingName_List)) -> ROYAL EXCHANGE
D26: State | E26: =INDEX(dms_PState_List,MATCH(dms_TradingName,dms_TradingName_List)) -> NSW | F26: p/code | G26: =INDEX(dms_PPostCode_List,MATCH(dms_TradingName,dms_TradingName_List)) -> 1225
B29: Contact name/s | C29: Mark Allen
B30: Contact phone/s | C30: 02 9275 0010
B31: Contact email address/s | C31: mark.allen@apa.com.au
B33: REGULATORY CONTROL PERIODS
B35: Forthcoming regulatory control period | C35: 2020-21 | D35: 2021-22 | E35: 2022-23 | F35: 2023-24 | G35: 2024-25
C36: =dms_FRCP_y6 -> 2025-26 | D36: =dms_FRCP_y7 -> 2026-27 | E36: =dms_FRCP_y8 -> 2027-28 | F36: =dms_FRCP_y9 -> 2028-29 | G36: =dms_FRCP_y10 -> 2029-30
B39: Current regulatory control period | C39: 2015-16 | D39: 2016-17 | E39: 2017-18 | F39: 2018-19 | G39: 2019-20
C40: =IF(dms_RPT="financial",VALUE(LEFT(CRCP_y1,4)+5)&"-"&TEXT(MID(CRCP_y1,3,2)+6,"00"),VALUE(LEFT(CRCP_y1,4)+5)) -> 2020-21 | D40: =IF(dms_RPT="financial",VALUE(LEFT(CRCP_y1,4)+6)&"-"&TEXT(MID(CRCP_y1,3,2)+7,"00"),VALUE(LEFT(CRCP_y1,4)+6)) -> 2021-22 | E40: =IF(dms_RPT="financial",VALUE(LEFT(CRCP_y1,4)+7)&"-"&TEXT(MID(CRCP_y1,3,2)+8,"00"),VALUE(LEFT(CRCP_y1,4)+7)) -> 2022-23 | F40: =IF(dms_RPT="financial",VALUE(LEFT(CRCP_y1,4)+8)&"-"&TEXT(MID(CRCP_y1,3,2)+9,"00"),VALUE(LEFT(CRCP_y1,4)+8)) -> 2023-24 | G40: =IF(dms_RPT="financial",VALUE(LEFT(CRCP_y1,4)+9)&"-"&TEXT(MID(CRCP_y1,3,2)+10,"00"),VALUE(LEFT(CRCP_y1,4)+9)) -> 2024-25
C41: =IF(dms_RPT="financial",VALUE(LEFT(CRCP_y1,4)+10)&"-"&TEXT(MID(CRCP_y1,3,2)+11,"00"),VALUE(LEFT(CRCP_y1,4)+10)) -> 2025-26 | D41: =IF(dms_RPT="financial",VALUE(LEFT(CRCP_y1,4)+11)&"-"&TEXT(MID(CRCP_y1,3,2)+12,"00"),VALUE(LEFT(CRCP_y1,4)+11)) -> 2026-27 | E41: =IF(dms_RPT="financial",VALUE(LEFT(CRCP_y1,4)+12)&"-"&TEXT(MID(CRCP_y1,3,2)+13,"00"),VALUE(LEFT(CRCP_y1,4)+12)) -> 2027-28 | F41: =IF(dms_RPT="financial",VALUE(LEFT(CRCP_y1,4)+13)&"-"&TEXT(MID(CRCP_y1,3,2)+14,"00"),VALUE(LEFT(CRCP_y1,4)+13)) -> 2028-29 | G41: =IF(dms_RPT="financial",VALUE(LEFT(CRCP_y1,4)+14)&"-"&TEXT(MID(CRCP_y1,3,2)+15,"00"),VALUE(LEFT(CRCP_y1,4)+14)) -> 2029-30
B44: Previous regulatory control period | C44: =IF(dms_RPT="financial",VALUE(LEFT(PRCP_y2,4)-1)&"-"&TEXT(VALUE(MID(PRCP_y2,3,2)),"00"),VALUE(LEFT(PRCP_y2,4)-1)) -> 2010-11 | D44: =IF(dms_RPT="financial",VALUE(LEFT(PRCP_y3,4)-1)&"-"&TEXT(VALUE(MID(PRCP_y3,3,2)),"00"),VALUE(LEFT(PRCP_y3,4)-1)) -> 2011-12 | E44: =IF(dms_RPT="financial",VALUE(LEFT(PRCP_y4,4)-1)&"-"&TEXT(VALUE(MID(PRCP_y4,3,2)),"00"),VALUE(LEFT(PRCP_y4,4)-1)) -> 2012-13 | F44: =IF(dms_RPT="financial",VALUE(LEFT(PRCP_y5,4)-1)&"-"&TEXT(VALUE(RIGHT(PRCP_y5,2)-1),"00"),VALUE(LEFT(PRCP_y5,4)-1)) -> 2013-14 | G44: =IF(dms_RPT="financial",VALUE(LEFT(CRCP_y1,4)-1)&"-"&TEXT(VALUE(RIGHT(CRCP_y1,2)-1),"00"),VALUE(LEFT(CRCP_y1,4)-1)) -> 2014-15
C45: 2006-07 | D45: 2007-08 | E45: 2008-09 | F45: 2009-10
B48: Commencing regulatory year | C48: 2020-21 | D48: CRY
B50: Last completed regulatory year | C50: 2024-25 | D50: dms_FinalYear
C54: IF THIS IS AN ABC RIN - make sure the the named range CRY is applied and the named range dms_dollar_nom_UOM is applied
C55: IF THIS IS A RESET RIN - make sure the named ranges CRY and dms_dollar_nom_UOM are NOT present in the workbook
C56: FOR ABC RINS THAT SPAN MULTIPLE YEARS - make sure MultiYear Flag is set and final year entered as required
B58: Source | C58: Regulatory proposal | E58: Please select the correct submission type from the dropdown list.
B59: Data quality (actual, estimate, public, consolidated) | C59: Consolidated | E59: Use Consolidated for Consolidated Confidential version Use Public for Consolidated Public version
B60: Amended RIN submission - amendment reason | C60: .
B61: Submission Date | C61: dd/mm/yy | D61: dms_SubmissionDate | E61: Please enter date this file submitted to AER (dd/mm/yyyy)
B62: EBSS - First application of scheme in forthcoming period? | C62: No
B63: Sector | C63: =INDEX(dms_Sector_List,MATCH(dms_TradingName,dms_TradingName_List)) -> Electricity | D63: dms_Sector | E63: =INDEX(dms_Sector_List,MATCH(dms_TradingName,dms_TradingName_List))
B64: Segment | C64: =INDEX(dms_Segment_List,MATCH(dms_TradingName,dms_TradingName_List)) -> Transmission | D64: dms_Segment | E64: =INDEX(dms_Segment_List,MATCH(dms_TradingName,dms_TradingName_List))
B65: Regulatory Year Ending | C65: 2025 | D65: dms_RYE | E65: =IF(dms_MultiYear_Flag=1,LEFT(dms_Specified_FinalYear,2)&RIGHT(dms_Specified_FinalYear,2),INDEX(dms_RYE_Formula_Result,MATCH(dms_Model,dms_Model_List)))
B66: Reporting Period Type | C66: =INDEX(dms_RPT_List,MATCH(dms_TradingName,dms_TradingName_List)) -> Financial | D66: dms_RPT | E66: =INDEX(dms_RPT_List,MATCH(dms_TradingName,dms_TradingName_List))
B67: Model or RIN Type | C67: Reset | D67: dms_Model | E67: Drop down selection
B68: EB/CA Unit of Measure for Monetary Values | C68: $0s | D68: dms_dollar_nom_UOM | E68: If the cover sheet is attached to an ABC RIN apply the NAMED RANGE to the cell
B69: Security Classification | C69: Public | D69: dms_Classification | E69: Always Public
B70: Jurisdiction | C70: =INDEX(dms_JurisdictionList,MATCH(dms_TradingName,dms_TradingName_List)) -> Qld | D70: dms_Jurisdiction | E70: =INDEX(dms_JurisdictionList,MATCH(dms_TradingName,dms_TradingName_List))
B71: FORECAST and MultiYear RINS
B72: CRY-1 (last full calendar year before CRY) | C72: =IF(dms_RPT="financial",VALUE(LEFT(dms_SingleYear_FinalYear_Result,4)),VALUE(LEFT(dms_SingleYear_FinalYear_Result,4)-1)) ->  | D72: dms_Cal_Year_B4_CRY | E72: '=IF(dms_RPT="financial",VALUE(LEFT(dms_SingleYear_FinalYear_Result,4)),VALUE(LEFT(dms_SingleYear_FinalYear_Result,4)-1))
B73: Dollar $ real month | C73: =INDEX(dms_RPTMonth_List,MATCH(dms_TradingName,dms_TradingName_List)) -> June | D73: dms_RPTMonth | E73: =INDEX(dms_RPTMonth_List,MATCH(dms_TradingName,dms_TradingName_List))
B74: Dollar $ real (the last month before the FRCP_y1) | C74: June 2020 | D74: dms_DollarReal | E74: =IF(SUM(dms_SingleYear_Model)>0,CONCATENATE(dms_RPTMonth)&" "&VALUE((LEFT(CRY,2))&RIGHT(CRY,2)),CONCATENATE(dms_RPTMonth)&" "&VALUE((LEFT(dms_CRCP_FinalYear_Result,2)&RIGHT(dms_CRCP_FinalYear_Result,2))))
B75: Dollar $ real previous year (PRCP_y5) | C75: June 2015 | D75: dms_DollarReal_Prev | E75: =IF(SUM(dms_SingleYear_Model)>0,CONCATENATE(dms_RPTMonth)&" "&VALUE(((LEFT(CRY,2))&RIGHT(CRY,2))-1),CONCATENATE(dms_RPTMonth)&" "&VALUE(((LEFT(dms_CRCP_FirstYear_Result,2)&RIGHT(dms_CRCP_FirstYear_Result,2))))-1)
B76: This block works out the various RYE's for ALL RIN types and MODELS
B77: Single Year Model T/F | C77: =IF(dms_Model="EB",1,0) -> 0 | D77: dms_EB
C78: =IF(dms_Model="CA",1,0) -> 0 | D78: dms_CA | E78: =dms_SingleYear_Model
C79: =IF(dms_Model="ARR",1,0) -> 0 | D79: dms_ARR
B80: Is this a single Year RIN? | C80: =IF(SUM(dms_SingleYear_Model)=1,"yes","no") -> no | E80: =IF(SUM(dms_SingleYear_Model)=1,"yes","no")
B81: Single Year Final Year Reference | C81: CRY | D81: dms_SingleYear_FinalYear_Ref | E81: This is the reference for EB, CA & ARR RINs
B82: Single Year Final Year Result | C82: =IFERROR(IF(SUM(dms_SingleYear_Model)<>0,(INDIRECT(dms_SingleYear_FinalYear_Ref)),"not a single year RIN"),"CRY not present") -> not a single year RIN | D82: dms_SingleYear_FinalYear_Result | E82: =IFERROR(IF(SUM(dms_SingleYear_Model)<>0,(INDIRECT(dms_SingleYear_FinalYear_Ref)),"not a single year RIN"),"CRY not present")
B83: FRCP length in years | C83: =INDEX(dms_FRCPlength_List,MATCH(dms_TradingName,dms_TradingName_List)) -> 5 | D83: dms_FRCPlength_Num | E83: =INDEX(dms_FRCPlength_List,MATCH(dms_TradingName,dms_TradingName_List))
B84: Multi Year Final Year Reference | C84: =INDEX(dms_FinalYear_List,MATCH(dms_FRCPlength_Num,dms_FRCPlength_Num_List)) -> dms_FRCP_y5 | D84: dms_MultiYear_FinalYear_Ref | E84: =INDEX(dms_FinalYear_List,MATCH(dms_FRCPlength_Num,dms_FRCPlength_Num_List))
B85: Multi Year Final Year Result | C85: 2024-25 | D85: dms_MultiYear_FinalYear_Result | E85: =IF(dms_MultiYear_Flag=0,INDIRECT(dms_MultiYear_FinalYear_Ref),dms_Specified_FinalYear) | I85: Formula errors OK
B86: CRCP length in years | C86: =INDEX(dms_CRCPlength_List,MATCH(dms_TradingName,dms_TradingName_List)) -> 5 | D86: dms_CRCPlength_Num | E86: =INDEX(dms_CRCPlength_List,MATCH(dms_TradingName,dms_TradingName_List))
B87: CRCP Final Year Reference | C87: =INDEX(dms_CFinalYear_List,MATCH(dms_CRCPlength_Num,dms_CRCPlength_Num_List)) -> CRCP_y5 | D87: dms_CRCP_FinalYear_Ref | E87: =INDEX(dms_CFinalYear_List,MATCH(dms_CRCPlength_Num,dms_CRCPlength_Num_List))
B88: CRCP First Year Result | C88: 2015-16 | D88: dms_CRCP_FirstYear_Result | E88: =INDEX(dms_CRCP_years,MATCH(dms_CRCPlength_Num,dms_CRCP_index))
B89: CRCP Final Year Result | C89: 2019-20 | D89: dms_CRCP_FinalYear_Result | E89: =IF(dms_MultiYear_Flag=0,(IF(SUM(dms_SingleYear_Model)>0,CRY,dms_CRCP_yZ)),dms_Specified_FinalYear)
B90: PTRM/ RFMs
B91: Form of control | C91: =INDEX(dms_FormControl_List,MATCH(dms_TradingName,dms_TradingName_List)) -> Revenue cap | D91: dms_FormControl | E91: =INDEX(dms_FormControl_List,MATCH(dms_TradingName,dms_TradingName_List))
B92: ABC RINS THAT SPAN MULTIPLE YEARS
B93: Is this a multi year ABC RIN? | C93: Yes
B94: Multiyear EB, CA or ARR? | C94: =IF(dms_MultiYear_ResponseFlag="No",0,1) -> 1 | D94: dms_MultiYear_Flag | E94: This is set from the answer provided above
C95: =IF(dms_MultiYear_Flag=1,FRY,"not a Multiple year submission") -> 2024-25 | D95: dms_Specified_FinalYear | E95: The result here is returned to dms_CRCP_FinalYear_Result if response to Q in C73 is "yes" and dms_MultiYear_Flag is set to 1
B96: Start year for 5.2 in Multi year RINS | C96: =IF(dms_MultiYear_Flag=1,FRY,CRY) -> 2024-25 | D96: dms_0502_Inst_Year | E96: =IF(dms_MultiYear_Flag=1,FRY,CRY) | G96: For single year RINS this is CRY - multi year RINS need to start a the end of the span of years (ie. FRY)
B97: EB RINS
B98: Calendar Year for table 3.6 data | C98: =IF(dms_RPT="financial",VALUE(LEFT(dms_SingleYear_FinalYear_Result,4)),VALUE(LEFT(dms_SingleYear_FinalYear_Result,4)-1)) ->  | D98: dms_0306_Year | E98: =IF(dms_RPT="financial",VALUE(LEFT(dms_SingleYear_FinalYear_Result,4)),VALUE(LEFT(dms_SingleYear_FinalYear_Result,4)-1))
B99: CA RINS
B100: Find how many rows in tables 6.3 sustained interruptions? | E100: dms_060301_MaxRows only returns a valid value when cover sheet is attached to a CA file
C101: =IF(dms_Model<>"CA","not a CA","Is a CA") -> not a CA | E101: =IF(dms_Model<>"CA","not a CA","Is a CA")
B102: dms_060301_Avg_Duration_Sustained_Int_Values present? | C102: =IFERROR(IF(INDEX(dms_060301_Avg_Duration_Sustained_Int_Values,1,1)<>"","yes","no"),"no") -> no | D102: dms_060301_checkvalue | E102: =IFERROR(IF(INDEX(dms_060301_Avg_Duration_Sustained_Int_Values,1,1)<>"","yes","no"),"no")
C103: =IF(AND(dms_Model="CA",(dms_060301_checkvalue="no")),"error - NR not present","no errors") -> no errors | E103: =IF(AND(dms_Model="CA",(dms_060301_checkvalue="no")),"error - NR not present","no errors")
B104: Table 6.3.1 - last row reference | C104: =IFERROR(IF(dms_Model="CA",LOOKUP(2,1/(dms_060301_Avg_Duration_Sustained_Int_Values<>""),(ROW(dms_060301_Avg_Duration_Sustained_Int_Values))),"not a CA"),"6.3 not present") -> not a CA | D104: dms_060301_LastRow | E104: =IFERROR(IF(dms_Model="CA",LOOKUP(2,1/(dms_060301_Avg_Duration_Sustained_Int_Values<>""),(ROW(dms_060301_Avg_Duration_Sustained_Int_Values))),"not a CA"),"6.3 not present")
B105: Table 6.3.1 - max number rows | C105: =IFERROR(IF(dms_Model="CA",(dms_060301_LastRow-15),"not a CA"),"error") -> not a CA | D105: dms_060301_MaxRows | E105: =IFERROR(IF(dms_Model="CA",(dms_060301_LastRow-15),"not a CA"),"error")
B106: Table 6.6.3 - Public lighting repair - no. business days | C106: =INDEX(dms_663_List,MATCH(dms_TradingName,dms_TradingName_List)) -> 5 | D106: dms_663 | E106: =INDEX(dms_663_List,MATCH(dms_TradingName,dms_TradingName_List))
B107: ARR or RESET RINS
B108: How many rows in tables 6.1 or 6.7? (leap year?) | C108: insert dms_LeapYear NR if required | E108: 'dms_LeapYear is used to determine dms_060701_Max_Rows BUT it is only found on worksheet 6.1 or 6.7 and the date value in the cell is used to determine whether it is a leap year
B109: Is dms_LeapYear named range present? | C109: =IFERROR(IF(dms_LeapYear,"yes"),"no") -> no
B110: Table 6.7.1 - includes a leap year? | C110: =IFERROR(IF(MONTH(DATE(YEAR(dms_LeapYear),2,29))=2,"is a leap year","not a leap year"), "dms_LeapYear not present") -> dms_LeapYear not present | D110: dms_LeapYear_Result | E110: =IFERROR(IF(MONTH(DATE(YEAR(dms_LeapYear),2,29))=2,"is a leap year","not a leap year"),"dms_LeapYear not present")
B111: MaxRows if Reset and leap year | C111: 0 | D111: dms_060701_Reset_MaxRows | E111: =IF(dms_LeapYear_Result="is a leap year",1827,1826) | H111: number of days present in Reset RIN table
B112: MaxRows if ARR and leap year | C112: 0 | D112: dms_060701_ARR_MaxRows | E112: =IF(dms_LeapYear_Result="is a leap year",366,365) | H112: number of days present in ARR RIN table
B113: Table 6.7.1 - Max Rows (leap year/ non leap year) | C113: =IF(dms_Model="ARR",dms_060701_ARR_MaxRows,IF(dms_Model="Reset",dms_060701_Reset_MaxRows,"not a relevant RIN type")) -> 0 | D113: dms_060701_MaxRows | E113: =IF(dms_Model="ARR",dms_060701_ARR_MaxRows,IF(dms_Model="Reset",dms_060701_Reset_MaxRows,"not a relevant RIN type"))
B114: How many columns in 6.7? (4 or 5 feeder categories) | C114: =IF(dms_FifthFeeder_flag_NSP="NO","This NSP has only 4 feeder categories","This NSP has 5 feeder categories") -> This NSP has only 4 feeder categories
B115: Table 6.7.1 - Last column (# of feeder categories > 4) | C115: =IF(dms_FifthFeeder_flag_NSP="NO",10,12) -> 10 | D115: dms_060701_MaxCols | E115: =IF(dms_FifthFeeder_flag_NSP="NO",8,10)
B116: Table 6.7.1 - Number of offset rows | C116: =IF(dms_Model="ARR",15,9) -> 9 | D116: dms_060701_OffsetRows | E116: =IF(dms_Model="ARR",15,9)
B117: Start date for telephone answering in 6.1 or 6.7? | E117: Using 060101 as naming standard not 060701 for start dates
B118: Table 6.1.1 and 6.7.1 - Start Date as Text | C118: =IF(SUM(dms_SingleYear_Model)>0,(CONCATENATE(IF(LEN(CRY)=4,"1-Jan-","1-Jul-"),LEFT(CRY,4))),(CONCATENATE(IF(LEN(CRCP_y4)=4,"1-Jan-","1-Jul-"),LEFT(CRCP_y4,4)))) -> 1-Jul-2018 | D118: dms_060101_StartDateTxt | E118: =IF(SUM(dms_SingleYear_Model)>1,(CONCATENATE(IF(LEN(CRY)=4,"1-Jan-","1-Jul-"),LEFT(CRY,4))),(CONCATENATE(IF(LEN(CRCP_y4)=4,"1-Jan-","1-Jul-"),LEFT(CRCP_y4,4))))
B119: Table 6.1.1 and 6.7.1 - Start Date as Date Value | C119: =DATEVALUE(dms_060701_StartDateTxt) -> 43282 | D119: dms_060101_StartDateVal | E119: =DATEVALUE(dms_060701_StartDateTxt)
B120: ARRs
B121: How many rows in table 6.8? | C121: insert dms_060801_StartCell NR if required | E121: dms_060801_StartCell is only found on worksheet 6.8 and is used to determine the starting date for the date range
B122: Is dms_060801_StartCell named range present? | C122: yes | E122: =IFERROR(IF((ROW(dms_060801_StartCell)-1)=1,"yes","yes"),"no")
B123: Table 6.8 - Number of offset rows | C123: 12 | D123: dms_0608_OffsetRows | E123: =IFERROR(IF(dms_Model="ARR",(ROW(dms_060801_StartCell)-1),"not an ARR"),"6.8 error")
B124: Table 6.8 - Last row | C124: 6.8 not present | D124: dms_0608_LastRow | E124: =IFERROR(IF(dms_060801_StartCell<>"",IF(dms_Model="ARR",(LOOKUP(2,1/(dms_060801_01_Values<>""),(ROW(dms_060801_01_Values)))),"not an ARR"),0),"6.8 not present")
B125: Table 6.8 - MaxRows | C125: =IFERROR(IF(dms_Model="ARR",(MAX(0,dms_0608_LastRow-dms_0608_OffsetRows)),"not an ARR"),"6.8 not present") -> not an ARR | D125: dms_060801_MaxRows | E125: =IFERROR(IF(dms_Model="ARR",(MAX(0,dms_0608_LastRow-dms_0608_OffsetRows)),"not an ARR"),"6.8 not present")
B126: TNSP RESET RINS
B127: Table 7.9.4 only appears in TNSPs Reset RIN
B128: Table 7.9.4 - first year | C128: =LEFT(PRCP_y3,4) -> 2012 | D128: dms_070904_Start_Year | E128: =LEFT(PRCP_y3,4)
B129: SUBSET FILES
B130: Is this Submission File a Subset File | C130: NO | D130: dms_Partial
B131: MISC
B132: Distribution Determination Reference | C132: =INDEX(dms_DeterminationRef_List,MATCH(dms_TradingName,dms_TradingName_List)) -> transmission determination | D132: dms_DeterminationRef
B133: Public lighting NSP? | C133: =INDEX(dms_Public_Lighting_List,MATCH(dms_TradingName,dms_TradingName_List)) -> NO | D133: dms_Public_Lighting | E133: =INDEX(dms_Public_Lighting_List,MATCH(dms_TradingName,dms_TradingName_List))
B134: CBD Feeder for this business | C134: =INDEX(dms_CBD_flag,MATCH(dms_TradingName,dms_TradingName_List)) -> NO | D134: dms_CBD_flag_NSP
B135: Urban Feeder for this business | C135: =INDEX(dms_Urban_flag,MATCH(dms_TradingName,dms_TradingName_List)) -> NO | D135: dms_Urban_flag_NSP
B136: Short rural Feeder for this business | C136: =INDEX(dms_ShortRural_flag,MATCH(dms_TradingName,dms_TradingName_List)) -> NO | D136: dms_ShortRural_flag_NSP
B137: Long rural Feeder for this business | C137: =INDEX(dms_LongRural_flag,MATCH(dms_TradingName,dms_TradingName_List)) -> NO | D137: dms_LongRural_flag_NSP
B138: Fifth Feeder Category (eg. TasNetworks (D)) | C138: =INDEX(dms_FeederType_5_flag,MATCH(dms_TradingName,dms_TradingName_List)) -> NO | D138: dms_FifthFeeder_flag_NSP | E138: =INDEX(dms_FeederType_5_flag,MATCH(dms_TradingName,dms_TradingName_List))
B140: DISCARD FILES
B141: discard this record? | C141: NO | D141: dms_DISCARD | E141: If record is to be discarded from DB set this flag to YES
B143: USES NAMED RANGES FLAG | C143: yes | D143: dms_Defined_Names_Used
B145: REGULATORY YEARS FOR MULTI RYE SUBMISSIONS
B146: Multiple RYE flag | C146: NO | D146: dms_Multi_RYE_flag
C147: Manually specify RYE | D147: Named ranges to apply
C148: 2013 | D148: dms_RYE_01
C149: 2014 | D149: dms_RYE_02
C150: 2015 | D150: dms_RYE_03
C151: 2016 | D151: dms_RYE_04
C152: 2017 | D152: dms_RYE_05
C153: 2018 | D153: dms_RYE_06
C154: 2019 | D154: dms_RYE_07
C155: 2020 | D155: dms_RYE_08
C156: 2021 | D156: dms_RYE_09

Sheet 2.1 Expenditure Summary
B1: =IF(dms_DataQuality="backcast",INDEX(dms_Worksheet_List,MATCH(dms_Model,dms_Model_List))&" BACKCAST",INDEX(dms_Worksheet_List,MATCH(dms_Model,dms_Model_List))) -> REGULATORY REPORTING STATEMENT
B2: =INDEX(dms_TradingNameFull_List,MATCH(dms_TradingName,dms_TradingName_List)) -> Directlink
B3: =IF(SUM(dms_SingleYear_Model)>0,CRY,CONCATENATE(FRCP_y1," to ",dms_MultiYear_FinalYear_Result)) -> 2020-21 to 2024-25
B4: 2.1 - EXPENDITURE SUMMARY
B8: 2.1.1 - PRESCRIBED TRANSMISSION SERVICES CAPEX (as incurred)
C10: EXPENDITURE
C11: Actual ($0's, nominal) | F11: =CONCATENATE("Forecast ($0's, real ", dms_DollarReal, ")") -> Forecast ($0's, real June 2020)
C12: =CRCP_y1 -> 2015-16 | D12: =CRCP_y2 -> 2016-17 | E12: =CRCP_y3 -> 2017-18 | F12: =CRCP_y4 -> 2018-19 | G12: =CRCP_y5 -> 2019-20 | H12: =FRCP_y1 -> 2020-21 | I12: =FRCP_y2 -> 2021-22 | J12: =FRCP_y3 -> 2022-23 | K12: =FRCP_y4 -> 2023-24 | L12: =FRCP_y5 -> 2024-25
B13: Replacement expenditure | C13: 3947045.08 | D13: 3340239.995 | E13: 9967623.975 | F13: 8428006.641 | G13: 7837804.076 | H13: 11639954.33 | I13: 8233262.241 | J13: 7182545.009 | K13: 8519173.119 | L13: 4923786.145
B14: Connections
B15: Augmentation Expenditure
B16: Non-network
B17: Capitalised network overheads
B18: Capitalised corporate overheads
B19: TOTAL CAPEX | C19: =SUM(C13:C18) -> 3947045.08 | D19: 3340239.995 | E19: 9967623.975 | F19: 8428006.641 | G19: 7837804.076 | H19: 11639954.33 | I19: 8233262.241 | J19: 7182545.009 | K19: 8519173.119 | L19: 4923786.145
B25: Please note: The "Replacement expenditure" category noted above also includes the capex expenditure for the Fire Suppression project, which was categorised as "Other" in the Regulatory Accounts.

Sheet 2.3c Material Projects
B1: =IF(dms_DataQuality="backcast",INDEX(dms_Worksheet_List,MATCH(dms_Model,dms_Model_List))&" BACKCAST",INDEX(dms_Worksheet_List,MATCH(dms_Model,dms_Model_List))) -> REGULATORY REPORTING STATEMENT
B2: =INDEX(dms_TradingNameFull_List,MATCH(dms_TradingName,dms_TradingName_List)) -> Directlink
B3: =IF(SUM(dms_SingleYear_Model)>0,CRY,CONCATENATE(FRCP_y1," to ",dms_MultiYear_FinalYear_Result)) -> 2020-21 to 2024-25
B4: 2.3c MATERIAL PROJECTS
B7: Instructions
B8: Enter information for material projects only in the tables below.
B10: 2.3c.1 - PROJECTS IN THE FORTHCOMING REGULATORY CONTROL PERIOD
B12: ONGOING AND FUTURE PROJECTS
B13: Unique identifier | C13: Project name | D13: Description of project | E13: Proposed start date | F13: Proposed commissioning date | G13: Location | H13: Business case approval | I13: Business case approval date | J13: Primary expenditure purpose category | L13: =CONCATENATE("Forecast yearly expenditure - forthcoming regulatory control period, $real ",dms_DollarReal) -> Forecast yearly expenditure - forthcoming regulatory control period, $real June 2020 | Q13: Total
L14: =FRCP_y1 -> 2020-21 | M14: =FRCP_y2 -> 2021-22 | N14: =FRCP_y3 -> 2022-23 | O14: =FRCP_y4 -> 2023-24 | P14: =FRCP_y5 -> 2024-25
B15: Include unique identifier for each project | D15: Provide a brief description of the project stating (where required) whether the regulatory test was satisfied, reference the appropriate documentation and where the regulatory test is yet to be satisfied the estimated timeframe for this to be achieved. | E15: Identify month and year | F15: Identify month and year | G15: Identify location if only one site, if several, e.g. pole replacement, insert 'various'. | H15: Reference the appropriate documentation supporting approval for the project. Where the business case is yet to be approved provide the estimated timeframe for this to be achieved. | I15: Identify month and year of the business case approval (if relevant) | J15: State the primary expenditure purpose category regarding this project. | L15: Include the anticipated or known expenditure of the project by expenditure purpose.
B16: 1 | C16: Obsolete Isolated Gate Bi-Polar Transistors | D16: Signing a long term asset replacment agreement to address the issue of obsolete IGBTs | E16: 2021-07-01 | F16: 2021-07-01 | G16: Mullumbimby and Bugalora convertor stations | H16: Business case approaval - 2019 | I16: 2019-03-01 | J16: Replacement capital expenditure - Transmission Assets | K16: Capital expenditure | L16: 3461136.819 | M16: 3461136.819 | N16: 3461136.819 | O16: 3461136.819 | P16: 3461136.819 | Q16: =SUM(L16:P16) -> 17305684.09
K17: Operating expenditure | Q17: =SUM(L17:P17) -> 0
K18: Maintenance expenditure | Q18: =SUM(L18:P18) -> 0
K19: Total | L19: =SUM(L16:L18) -> 3461136.819 | M19: 3461136.819 | N19: 3461136.819 | O19: 3461136.819 | P19: 3461136.819 | Q19: 17305684.09
K20: Capital expenditure | Q20: =SUM(L20:P20) -> 0
K21: Operating expenditure | Q21: =SUM(L21:P21) -> 0
K22: Maintenance expenditure | Q22: =SUM(L22:P22) -> 0
K23: Total | L23: =SUM(L20:L22) -> 0 | M23: 0 | N23: 0 | O23: 0 | P23: 0 | Q23: 0
K24: Capital expenditure | Q24: =SUM(L24:P24) -> 0
K25: Operating expenditure | Q25: =SUM(L25:P25) -> 0
K26: Maintenance expenditure | Q26: =SUM(L26:P26) -> 0
K27: Total | L27: =SUM(L24:L26) -> 0 | M27: 0 | N27: 0 | O27: 0 | P27: 0 | Q27: 0
K28: Capital expenditure | Q28: =SUM(L28:P28) -> 0
K29: Operating expenditure | Q29: =SUM(L29:P29) -> 0
K30: Maintenance expenditure | Q30: =SUM(L30:P30) -> 0
K31: Total | L31: =SUM(L28:L30) -> 0 | M31: 0 | N31: 0 | O31: 0 | P31: 0 | Q31: 0
K32: Capital expenditure | Q32: =SUM(L32:P32) -> 0
K33: Operating expenditure | Q33: =SUM(L33:P33) -> 0
K34: Maintenance expenditure | Q34: =SUM(L34:P34) -> 0
K35: Total | L35: =SUM(L32:L34) -> 0 | M35: 0 | N35: 0 | O35: 0 | P35: 0 | Q35: 0
K36: Capital expenditure | Q36: =SUM(L36:P36) -> 0
K37: Operating expenditure | Q37: =SUM(L37:P37) -> 0
K38: Maintenance expenditure | Q38: =SUM(L38:P38) -> 0
K39: Total | L39: =SUM(L36:L38) -> 0 | M39: 0 | N39: 0 | O39: 0 | P39: 0 | Q39: 0
K40: Capital expenditure | Q40: =SUM(L40:P40) -> 0
K41: Operating expenditure | Q41: =SUM(L41:P41) -> 0
K42: Maintenance expenditure | Q42: =SUM(L42:P42) -> 0
K43: Total | L43: =SUM(L40:L42) -> 0 | M43: 0 | N43: 0 | O43: 0 | P43: 0 | Q43: 0
K44: Capital expenditure | Q44: =SUM(L44:P44) -> 0
K45: Operating expenditure | Q45: =SUM(L45:P45) -> 0
K46: Maintenance expenditure | Q46: =SUM(L46:P46) -> 0
K47: Total | L47: =SUM(L44:L46) -> 0 | M47: 0 | N47: 0 | O47: 0 | P47: 0 | Q47: 0
K48: Capital expenditure | Q48: =SUM(L48:P48) -> 0
K49: Operating expenditure | Q49: =SUM(L49:P49) -> 0
K50: Maintenance expenditure | Q50: =SUM(L50:P50) -> 0
K51: Total | L51: =SUM(L48:L50) -> 0 | M51: 0 | N51: 0 | O51: 0 | P51: 0 | Q51: 0
K52: Capital expenditure | Q52: =SUM(L52:P52) -> 0
K53: Operating expenditure | Q53: =SUM(L53:P53) -> 0
K54: Maintenance expenditure | Q54: =SUM(L54:P54) -> 0
K55: Total | L55: =SUM(L52:L54) -> 0 | M55: 0 | N55: 0 | O55: 0 | P55: 0 | Q55: 0
K56: Total | L56: =(L19+L23+L27+L31+L35+L39+L43+L47+L51+L55) -> 3461136.819 | M56: 3461136.819 | N56: 3461136.819 | O56: 3461136.819 | P56: 3461136.819 | Q56: 17305684.09
B60: 2.3c.2 - PROJECTS IN THE CURRENT REGULATORY CONTROL PERIOD
B62: CURRENT PROJECTS
L63: Yearly expenditure - current regulatory control period (nominal $'0s) | Q63: Total
B64: Unique identifier | C64: Project name | D64: Description of project | E64: Proposed start date | F64: Proposed commissioning date | G64: Location | H64: Business case approval | I64: Business case approval date | J64: Primary expenditure purpose category | L64: =CRCP_y1 -> 2015-16 | M64: =CRCP_y2 -> 2016-17 | N64: =CRCP_y3 -> 2017-18 | O64: =CRCP_y4 -> 2018-19 | P64: =CRCP_y5 -> 2019-20 | Q64: Total
B65: Include unique identifier for each project | D65: Provide a brief description of the project stating (where required) whether the regulatory test was satisfied, reference the appropriate documentation and where the regulatory test is yet to be satisfied the estimated timeframe for this to be achieved. | E65: Identify month and year | F65: Identify month and year | G65: Identify location if only one site, if several, e.g. pole replacement, insert 'various'. | H65: Reference the appropriate documentation supporting approval for the project. Where the business case is yet to be approved provide the estimated timeframe for this to be achieved. | I65: Identify month and year of the business case approval (if relevant) | J65: State the primary expenditure purpose category regarding this project. | L65: Include approved expenditure of the project as at time of business case approval.
K66: Capital expenditure | L66: 0 | M66: 0 | N66: 6728738.22 | O66: 4331955.1 | P66: 3973563.768 | Q66: =SUM(L66:P66) -> 15034257.09
B67: 3 | C67: Control and Protection System replacement | D67: Replacing the control and protection computer system on Directlink | E67: 2018-01-01 | F67: 1905-07-12 | G67: Directlink | H67: AER approval in 2015 Determination | J67: replacement capex | K67: Operating expenditure | Q67: =SUM(L67:P67) -> 0
K68: Maintenance expenditure | Q68: =SUM(L68:P68) -> 0
K69: Total | L69: =SUM(L66:L68) -> 0 | M69: 0 | N69: 6728738.22 | O69: 4331955.1 | P69: 3973563.768 | Q69: 15034257.09
K70: Capital expenditure | Q70: =SUM(L70:P70) -> 0
K71: Operating expenditure | Q71: =SUM(L71:P71) -> 0
K72: Maintenance expenditure | Q72: =SUM(L72:P72) -> 0
K73: Total | L73: =SUM(L70:L72) -> 0 | M73: 0 | N73: 0 | O73: 0 | P73: 0 | Q73: 0
K74: Capital expenditure | Q74: =SUM(L74:P74) -> 0
K75: Operating expenditure | Q75: =SUM(L75:P75) -> 0
K76: Maintenance expenditure | Q76: =SUM(L76:P76) -> 0
K77: Total | L77: =SUM(L74:L76) -> 0 | M77: 0 | N77: 0 | O77: 0 | P77: 0 | Q77: 0
K78: Capital expenditure | Q78: =SUM(L78:P78) -> 0
K79: Operating expenditure | Q79: =SUM(L79:P79) -> 0
K80: Maintenance expenditure | Q80: =SUM(L80:P80) -> 0
K81: Total | L81: =SUM(L78:L80) -> 0 | M81: 0 | N81: 0 | O81: 0 | P81: 0 | Q81: 0
K82: Capital expenditure | Q82: =SUM(L82:P82) -> 0
K83: Operating expenditure | Q83: =SUM(L83:P83) -> 0
K84: Maintenance expenditure | Q84: =SUM(L84:P84) -> 0
K85: Total | L85: =SUM(L82:L84) -> 0 | M85: 0 | N85: 0 | O85: 0 | P85: 0 | Q85: 0
K86: Capital expenditure | Q86: =SUM(L86:P86) -> 0
K87: Operating expenditure | Q87: =SUM(L87:P87) -> 0
K88: Maintenance expenditure | Q88: =SUM(L88:P88) -> 0
K89: Total | L89: =SUM(L86:L88) -> 0 | M89: 0 | N89: 0 | O89: 0 | P89: 0 | Q89: 0
K90: Capital expenditure | Q90: =SUM(L90:P90) -> 0
K91: Operating expenditure | Q91: =SUM(L91:P91) -> 0
K92: Maintenance expenditure | Q92: =SUM(L92:P92) -> 0
K93: Total | L93: =SUM(L90:L92) -> 0 | M93: 0 | N93: 0 | O93: 0 | P93: 0 | Q93: 0
K94: Capital expenditure | Q94: =SUM(L94:P94) -> 0
K95: Operating expenditure | Q95: =SUM(L95:P95) -> 0
K96: Maintenance expenditure | Q96: =SUM(L96:P96) -> 0
K97: Total | L97: =SUM(L94:L96) -> 0 | M97: 0 | N97: 0 | O97: 0 | P97: 0 | Q97: 0
K98: Capital expenditure | Q98: =SUM(L98:P98) -> 0
K99: Operating expenditure | Q99: =SUM(L99:P99) -> 0
K100: Maintenance expenditure | Q100: =SUM(L100:P100) -> 0
K101: Total | L101: =SUM(L98:L100) -> 0 | M101: 0 | N101: 0 | O101: 0 | P101: 0 | Q101: 0
K102: Capital expenditure | Q102: =SUM(L102:P102) -> 0
K103: Operating expenditure | Q103: =SUM(L103:P103) -> 0
K104: Maintenance expenditure | Q104: =SUM(L104:P104) -> 0
K105: Total | L105: =SUM(L102:L104) -> 0 | M105: 0 | N105: 0 | O105: 0 | P105: 0 | Q105: 0
K106: Total | L106: =(L69+L73+L77+L81+L85+L89+L93+L97+L101+L105) -> 0 | M106: 0 | N106: 6728738.22 | O106: 4331955.1 | P106: 3973563.768 | Q106: 15034257.09

Sheet 2.6 Non-network
B1: =IF(dms_DataQuality="backcast",INDEX(dms_Worksheet_List,MATCH(dms_Model,dms_Model_List))&" BACKCAST",INDEX(dms_Worksheet_List,MATCH(dms_Model,dms_Model_List))) -> REGULATORY REPORTING STATEMENT
B2: =INDEX(dms_TradingNameFull_List,MATCH(dms_TradingName,dms_TradingName_List)) -> Directlink
B3: =IF(SUM(dms_SingleYear_Model)>0,CRY,CONCATENATE(FRCP_y1," to ",dms_MultiYear_FinalYear_Result)) -> 2020-21 to 2024-25
B4: 2.6 NON NETWORK EXPENDITURE
B8: 2.6.1 - NON-NETWORK EXPENDITURE
D9: EXPENDITURE
D10: Actual ($0's, nominal) | G10: =CONCATENATE("Forecast ($0's, real ", dms_DollarReal, ")") -> Forecast ($0's, real June 2020)
D11: =CRCP_y1 -> 2015-16 | E11: =CRCP_y2 -> 2016-17 | F11: =CRCP_y3 -> 2017-18 | G11: =CRCP_y4 -> 2018-19 | H11: =CRCP_y5 -> 2019-20 | I11: =FRCP_y1 -> 2020-21 | J11: =FRCP_y2 -> 2021-22 | K11: =FRCP_y3 -> 2022-23 | L11: =FRCP_y4 -> 2023-24 | M11: =FRCP_y5 -> 2024-25
B12: OPEX
B13: IT & COMMUNICATIONS | C13: Total IT & communications | D13: 0 | E13: 0 | F13: 0
B14: MOTOR VEHICLES | C14: Total motor vehicles | D14: 0 | E14: 0 | F14: 0
B15: BUILDINGS AND PROPERTY | C15: Total buildings and property expenditure | D15: 0 | E15: 0 | F15: 0
B16: OTHER | C16: Total other | D16: 0 | E16: 0 | F16: 0
B17: CAPEX
B18: IT & COMMUNICATIONS | C18: Total IT & communications | D18: 0 | E18: 0 | F18: 0
B19: MOTOR VEHICLES | C19: Total motor vehicles | D19: 0 | E19: 0 | F19: 0
B20: BUILDINGS AND PROPERTY | C20: Total buildings and property expenditure | D20: 0 | E20: 0 | F20: 0
B21: OTHER | C21: Total other | D21: 0 | E21: 0 | F21: 0 | G21: 242468366.6 | H21: 36184612.2 | I21: 52441466.95 | J21: 52441466.95 | K21: 52441466.95 | L21: 52441466.95 | M21: 52441466.95

Sheet 2.14 Forecast price changes
B1: =(LOOKUP(dms_Model,dms_Model_List,dms_Worksheet_List)) -> REGULATORY REPORTING STATEMENT
B2: =INDEX(dms_TradingNameFull_List,MATCH(dms_TradingName,dms_TradingName_List)) -> Directlink
B3: =IF(SUM(dms_SingleYear_Model)>0,CRY,CONCATENATE(FRCP_y1," to ",dms_MultiYear_FinalYear_Result)) -> 2020-21 to 2024-25
B4: 2.14 FORECAST PRICE CHANGES
B6: Instructions
B7: The TNSP must provide all forecast price changes used to forecast opex and capex, including forecast changes in CPI. Forecast price changes must be expressed in real terms, except for CPI. If the same escalators are not used for capex and opex, report capex and opex escalators separately. If price changes for a given year were not used to forecast either opex or capex enter '0' for that year.
B9: 2.14.1 - FORECAST LABOUR AND MATERIALS PRICE CHANGES
C10: Price changes (% YoY real) Current regulatory period | H10: Price changes (%YoY real) Forthcoming regulatory period
C11: Actual | F11: Forecast
C12: =CRCP_y1 -> 2015-16 | D12: =CRCP_y2 -> 2016-17 | E12: =CRCP_y3 -> 2017-18 | F12: =CRCP_y4 -> 2018-19 | G12: =CRCP_y5 -> 2019-20 | H12: =FRCP_y1 -> 2020-21 | I12: =FRCP_y2 -> 2021-22 | J12: =FRCP_y3 -> 2022-23 | K12: =FRCP_y4 -> 2023-24 | L12: =FRCP_y5 -> 2024-25
B13: Materials price changes
B44: Labour and Other price changes
B45: Real Labour Cost Escalator for opex | F45: -0.001 | G45: -0.001 | H45: -0.001 | I45: -0.001 | J45: -0.001 | K45: -0.001 | L45: -0.001
B60: CPI

Sheet 2.16 Opex
B1: =(LOOKUP(dms_Model,dms_Model_List,dms_Worksheet_List)) -> REGULATORY REPORTING STATEMENT
B2: =INDEX(dms_TradingNameFull_List,MATCH(dms_TradingName,dms_TradingName_List)) -> Directlink
B3: =IF(SUM(dms_SingleYear_Model)>0,CRY,CONCATENATE(FRCP_y1," to ",dms_MultiYear_FinalYear_Result)) -> 2020-21 to 2024-25
B4: 2.16 OPEX SUMMARY
D6: IMPORTANT! Have you used a base-step-trend model to derive your opex forecast? Yes/No | F6: Yes
B10: 2.16.1 - PRESCRIBED TRANSMISSION SERVICES - OPEX BY DRIVER
C11: EXPENDITURE
C12: Actual ($0's, nominal) | F12: =CONCATENATE("Forecast ($0's, real ", dms_DollarReal, ")") -> Forecast ($0's, real June 2020)
C13: =CRCP_y1 -> 2015-16 | D13: =CRCP_y2 -> 2016-17 | E13: =CRCP_y3 -> 2017-18 | F13: =CRCP_y4 -> 2018-19 | G13: =CRCP_y5 -> 2019-20 | H13: =FRCP_y1 -> 2020-21 | I13: =FRCP_y2 -> 2021-22 | J13: =FRCP_y3 -> 2022-23 | K13: =FRCP_y4 -> 2023-24 | L13: =FRCP_y5 -> 2024-25
B14: Efficient historic opex | F14: 4264364.293 | G14: 4264364.293 | H14: 4264364.293 | I14: 4264364.293 | J14: 4264364.293 | K14: 4264364.293 | L14: 4264364.293
B15: Real price changes | F15: -1195.415128 | G15: -1195.415128 | H15: -1.20610722 | I15: 7305.552677 | J15: 17235.72278 | K15: 27332.80088 | L15: 37503.35253
B16: Output growth | F16: 0 | G16: 0 | H16: 0 | I16: 0 | J16: 0 | K16: 0 | L16: 0
B17: Productivity growth | F17: 0 | G17: 0 | H17: 0 | I17: 0 | J17: 0 | K17: 0 | L17: 0
B18: Step changes | F18: 0 | G18: 0 | H18: 0 | I18: 0 | J18: 0 | K18: 0 | L18: 0
B19: Category specific forecasts | F19: 467091.2392 | G19: 467091.2392 | H19: 509410.5629 | I19: 555675.9523 | J19: 592124.2383 | K19: 617693.3608 | L19: 628674.6976
B20: TOTAL | C20: =SUM(C14:C19) -> 0 | D20: 0 | E20: 0 | F20: 4730260.117 | G20: =SUM(G14:G19) -> 4730260.117 | H20: =SUM(H14:H19) -> 4773773.65 | I20: =SUM(I14:I19) -> 4827345.798 | J20: =SUM(J14:J19) -> 4873724.254 | K20: =SUM(K14:K19) -> 4909390.455 | L20: =SUM(L14:L19) -> 4930542.343
B22: 2.16.2 - PRESCRIBED TRANSMISSION SERVICES - OPEX BY CATEGORY
C23: EXPENDITURE
C24: Actual ($0's, nominal) | F24: =CONCATENATE("Forecast ($0's, real ", dms_DollarReal, ")") -> Forecast ($0's, real June 2020)
C25: =CRCP_y1 -> 2015-16 | D25: =CRCP_y2 -> 2016-17 | E25: =CRCP_y3 -> 2017-18 | F25: =CRCP_y4 -> 2018-19 | G25: =CRCP_y5 -> 2019-20 | H25: =FRCP_y1 -> 2020-21 | I25: =FRCP_y2 -> 2021-22 | J25: =FRCP_y3 -> 2022-23 | K25: =FRCP_y4 -> 2023-24 | L25: =FRCP_y5 -> 2024-25
B26: NETWORK OPERATIONS AND MAINTENANCE
B27: Operating and maintenance expenses
B28: Management fees and expenses
B29: OTHER COSTS
B30: Insurance
B31: Tax on property and capital
B32: Accounting/audit fees
B33: Other
B34: Debt raising costs
B35: TOTAL | C35: =SUM(C27:C28,C30:C34) -> 0 | D35: 0 | E35: 0 | F35: 0 | G35: 0 | H35: 0 | I35: 0 | J35: 0 | K35: 0 | L35: 0

Sheet 2.17 Step Changes
B1: =(LOOKUP(dms_Model,dms_Model_List,dms_Worksheet_List)) -> REGULATORY REPORTING STATEMENT
B2: =INDEX(dms_TradingNameFull_List,MATCH(dms_TradingName,dms_TradingName_List)) -> Directlink
B3: =IF(SUM(dms_SingleYear_Model)>0,CRY,CONCATENATE(FRCP_y1," to ",dms_MultiYear_FinalYear_Result)) -> 2020-21 to 2024-25
B4: 2.17 STEP CHANGES
B6: Instructions
B7: Complete the Tables below in accordance with the regulatory information notice. The total step changes in Table 2.17.1 must reconcile (in each year) to the total step changes for each year in Table 2.16.1 of worksheet 2.16 Opex Summary.
B9: 2.17.1 - FORECAST OPEX STEP CHANGES
D10: EXPENDITURE
D11: =CONCATENATE("Forecast ($0's, real ", dms_DollarReal, ")") -> Forecast ($0's, real June 2020)
B12: Step change | C12: Description | D12: =CRCP_y4 -> 2018-19 | E12: =CRCP_y5 -> 2019-20 | F12: =FRCP_y1 -> 2020-21 | G12: =FRCP_y2 -> 2021-22 | H12: =FRCP_y3 -> 2022-23 | I12: =FRCP_y4 -> 2023-24 | J12: =FRCP_y5 -> 2024-25
B13: n/a
C28: TOTAL | D28: =SUM(D13:D27) -> 0 | E28: 0 | F28: 0 | G28: 0 | H28: 0 | I28: 0 | J28: 0
C29: Check | D29: =IF(D$28-'2.16 Opex'!F$19=0,"OK","Error") -> Error | E29: =IF(E$28-'2.16 Opex'!G$19=0,"OK","Error") -> Error | F29: =IF(F$28-'2.16 Opex'!H$19=0,"OK","Error") -> Error | G29: =IF(G$28-'2.16 Opex'!I$19=0,"OK","Error") -> Error | H29: =IF(H$28-'2.16 Opex'!J$19=0,"OK","Error") -> Error | I29: =IF(I$28-'2.16 Opex'!K$19=0,"OK","Error") -> Error | J29: =IF(J$28-'2.16 Opex'!L$19=0,"OK","Error") -> Error
B31: 2.17.2 - FORECAST CAPEX STEP CHANGES
D32: EXPENDITURE
D33: =CONCATENATE("Forecast ($0's, real ", dms_DollarReal, ")") -> Forecast ($0's, real June 2020)
B34: Step change | C34: Description | D34: =CRCP_y4 -> 2018-19 | E34: =CRCP_y5 -> 2019-20 | F34: =FRCP_y1 -> 2020-21 | G34: =FRCP_y2 -> 2021-22 | H34: =FRCP_y3 -> 2022-23 | I34: =FRCP_y4 -> 2023-24 | J34: =FRCP_y5 -> 2024-25
C50: TOTAL | D50: =SUM(D35:D49) -> 0 | E50: 0 | F50: 0 | G50: 0 | H50: 0 | I50: 0 | J50: 0
B53: 2.17.5 - CATEGORY SPECIFIC OPEX
D54: EXPENDITURE
D55: =CONCATENATE("Forecast ($0's, real ", dms_DollarReal, ")") -> Forecast ($0's, real June 2020)
B56: Step change | C56: Description | D56: =CRCP_y4 -> 2018-19 | E56: =CRCP_y5 -> 2019-20 | F56: =FRCP_y1 -> 2020-21 | G56: =FRCP_y2 -> 2021-22 | H56: =FRCP_y3 -> 2022-23 | I56: =FRCP_y4 -> 2023-24 | J56: =FRCP_y5 -> 2024-25
B57: Insurance | C57: Propoerty and Liability insurance for directlink | D57: ='2.16 Opex'!F19 -> 467091.2392 | E57: ='2.16 Opex'!G19 -> 467091.2392 | F57: ='2.16 Opex'!H19 -> 509410.5629 | G57: ='2.16 Opex'!I19 -> 555675.9523 | H57: ='2.16 Opex'!J19 -> 592124.2383 | I57: ='2.16 Opex'!K19 -> 617693.3608 | J57: ='2.16 Opex'!L19 -> 628674.6976
C72: TOTAL | D72: =SUM(D57:D71) -> 467091.2392 | E72: 467091.2392 | F72: 509410.5629 | G72: 555675.9523 | H72: 592124.2383 | I72: 617693.3608 | J72: 628674.6976

Sheet 3.2.3 Provisions
B1: REGULATORY REPORTING STATEMENT
B2: =INDEX(dms_TradingNameFull_List,MATCH(dms_TradingName,dms_TradingName_List)) -> Directlink
B3: =CONCATENATE("ECONOMIC BENCHMARKING ",IF(SUM(dms_SingleYear_Model)>0,CRY,CONCATENATE(dms_CRCP_FirstYear_Result," to ",dms_CRCP_FinalYear_Result))) -> ECONOMIC BENCHMARKING 2015-16 to 2019-20
B4: 3.2 OPERATING EXPENDITURE
B6: The is ONE table on this worksheet. Each Provision has been grouped for ease of navigation. See the Instructions sheet on how to group and ungroup tables.
B9: 3.2.3 - PROVISIONS
C10: $0's
C11: =CRCP_y4 -> 2018-19 | D11: =CRCP_y5 -> 2019-20 | E11: =FRCP_y1 -> 2020-21 | F11: =FRCP_y2 -> 2021-22 | G11: =FRCP_y3 -> 2022-23 | H11: =FRCP_y4 -> 2023-24 | I11: =FRCP_y5 -> 2024-25
A12: TOPEX03A | B12: Provision name
B13: Brief description of provision
A14: TOPEX0301A | B14: Opening balance (the carrying amount at the beginning of the period)
B15: Additional provisions made in the period, including increases to existing provisions
A16: TOPEX0302A | B16: Opex component
A17: TOPEX0303A | B17: Capex component
A18: TOPEX0304A | B18: Other component
B19: Amounts used (that is, incurred and charged against the provision) during the period
A20: TOPEX0305A | B20: Opex component
A21: TOPEX0306A | B21: Capex component
A22: TOPEX0307A | B22: Other component
B23: Unused amounts reversed during the period
A24: TOPEX0308A | B24: Opex component
A25: TOPEX0309A | B25: Capex component
A26: TOPEX0310A | B26: Other component
B27: The increase during the period in the discounted amount arising from the passage of time and the effect of any change in the discount rate
A28: TOPEX0311A | B28: Opex component
A29: TOPEX0312A | B29: Capex component
A30: TOPEX0313A | B30: Other component
A31: TOPEX0314A | B31: Closing balance (carrying amount at the end of the period)
A32: TOPEX03B | B32: Provision name
B33: Brief description of provision
A34: TOPEX0301B | B34: Opening balance (the carrying amount at the beginning of the period)
B35: Additional provisions made in the period, including increases to existing provisions
A36: TOPEX0302B | B36: Opex component
A37: TOPEX0303B | B37: Capex component
A38: TOPEX0304B | B38: Other component
B39: Amounts used (that is, incurred and charged against the provision) during the period
A40: TOPEX0305B | B40: Opex component
A41: TOPEX0306B | B41: Capex component
A42: TOPEX0307B | B42: Other component
B43: Unused amounts reversed during the period
A44: TOPEX0308B | B44: Opex component
A45: TOPEX0309B | B45: Capex component
A46: TOPEX0310B | B46: Other component
B47: The increase during the period in the discounted amount arising from the passage of time and the effect of any change in the discount rate
A48: TOPEX0311B | B48: Opex component
A49: TOPEX0312B | B49: Capex component
A50: TOPEX0313B | B50: Other component
A51: TOPEX0314B | B51: Closing balance (carrying amount at the end of the period)
A52: TOPEX03C | B52: Provision name
B53: Brief description of provision
A54: TOPEX0301C | B54: Opening balance (the carrying amount at the beginning of the period)
B55: Additional provisions made in the period, including increases to existing provisions
A56: TOPEX0302C | B56: Opex component
A57: TOPEX0303C | B57: Capex component
A58: TOPEX0304C | B58: Other component
B59: Amounts used (that is, incurred and charged against the provision) during the period
A60: TOPEX0305C | B60: Opex component
A61: TOPEX0306C | B61: Capex component
A62: TOPEX0307C | B62: Other component
B63: Unused amounts reversed during the period
A64: TOPEX0308C | B64: Opex component
A65: TOPEX0309C | B65: Capex component
A66: TOPEX0310C | B66: Other component
B67: The increase during the period in the discounted amount arising from the passage of time and the effect of any change in the discount rate
A68: TOPEX0311C | B68: Opex component
A69: TOPEX0312C | B69: Capex component
A70: TOPEX0313C | B70: Other component
A71: TOPEX0314C | B71: Closing balance (carrying amount at the end of the period)
A72: TOPEX03D | B72: Provision name
B73: Brief description of provision
A74: TOPEX0301D | B74: Opening balance (the carrying amount at the beginning of the period)
B75: Additional provisions made in the period, including increases to existing provisions
A76: TOPEX0302D | B76: Opex component
A77: TOPEX0303D | B77: Capex component
A78: TOPEX0304D | B78: Other component
B79: Amounts used (that is, incurred and charged against the provision) during the period
A80: TOPEX0305D | B80: Opex component
A81: TOPEX0306D | B81: Capex component
A82: TOPEX0307D | B82: Other component
B83: Unused amounts reversed during the period
A84: TOPEX0308D | B84: Opex component
A85: TOPEX0309D | B85: Capex component
A86: TOPEX0310D | B86: Other component
B87: The increase during the period in the discounted amount arising from the passage of time and the effect of any change in the discount rate
A88: TOPEX0311D | B88: Opex component
A89: TOPEX0312D | B89: Capex component
A90: TOPEX0313D | B90: Other component
A91: TOPEX0314D | B91: Closing balance (carrying amount at the end of the period)
A92: TOPEX03E | B92: Provision name
B93: Brief description of provision
A94: TOPEX0301E | B94: Opening balance (the carrying amount at the beginning of the period)
B95: Additional provisions made in the period, including increases to existing provisions
A96: TOPEX0302E | B96: Opex component
A97: TOPEX0303E | B97: Capex component
A98: TOPEX0304E | B98: Other component
B99: Amounts used (that is, incurred and charged against the provision) during the period
A100: TOPEX0305E | B100: Opex component
A101: TOPEX0306E | B101: Capex component
A102: TOPEX0307E | B102: Other component
B103: Unused amounts reversed during the period
A104: TOPEX0308E | B104: Opex component
A105: TOPEX0309E | B105: Capex component
A106: TOPEX0310E | B106: Other component
B107: The increase during the period in the discounted amount arising from the passage of time and the effect of any change in the discount rate
A108: TOPEX0311E | B108: Opex component
A109: TOPEX0312E | B109: Capex component
A110: TOPEX0313E | B110: Other component
A111: TOPEX0314E | B111: Closing balance (carrying amount at the end of the period)
A112: TOPEX03F | B112: Provision name
B113: Brief description of provision
A114: TOPEX0301F | B114: Opening balance (the carrying amount at the beginning of the period)
B115: Additional provisions made in the period, including increases to existing provisions
A116: TOPEX0302F | B116: Opex component
A117: TOPEX0303F | B117: Capex component
A118: TOPEX0304F | B118: Other component
B119: Amounts used (that is, incurred and charged against the provision) during the period
A120: TOPEX0305F | B120: Opex component
A121: TOPEX0306F | B121: Capex component
A122: TOPEX0307F | B122: Other component
B123: Unused amounts reversed during the period
A124: TOPEX0308F | B124: Opex component
A125: TOPEX0309F | B125: Capex component
A126: TOPEX0310F | B126: Other component
B127: The increase during the period in the discounted amount arising from the passage of time and the effect of any change in the discount rate
A128: TOPEX0311F | B128: Opex component
A129: TOPEX0312F | B129: Capex component
A130: TOPEX0313F | B130: Other component
A131: TOPEX0314F | B131: Closing balance (carrying amount at the end of the period)
A132: TOPEX03G | B132: Provision name
B133: Brief description of provision
A134: TOPEX0301G | B134: Opening balance (the carrying amount at the beginning of the period)
B135: Additional provisions made in the period, including increases to existing provisions
A136: TOPEX0302G | B136: Opex component
A137: TOPEX0303G | B137: Capex component
A138: TOPEX0304G | B138: Other component
B139: Amounts used (that is, incurred and charged against the provision) during the period
A140: TOPEX0305G | B140: Opex component
A141: TOPEX0306G | B141: Capex component
A142: TOPEX0307G | B142: Other component
B143: Unused amounts reversed during the period
A144: TOPEX0308G | B144: Opex component
A145: TOPEX0309G | B145: Capex component
A146: TOPEX0310G | B146: Other component
B147: The increase during the period in the discounted amount arising from the passage of time and the effect of any change in the discount rate
A148: TOPEX0311G | B148: Opex component
A149: TOPEX0312G | B149: Capex component
A150: TOPEX0313G | B150: Other component
A151: TOPEX0314G | B151: Closing balance (carrying amount at the end of the period)
A152: TOPEX03H | B152: Provision name
B153: Brief description of provision
A154: TOPEX0301H | B154: Opening balance (the carrying amount at the beginning of the period)
B155: Additional provisions made in the period, including increases to existing provisions
A156: TOPEX0302H | B156: Opex component
A157: TOPEX0303H | B157: Capex component
A158: TOPEX0304H | B158: Other component
B159: Amounts used (that is, incurred and charged against the provision) during the period
A160: TOPEX0305H | B160: Opex component
A161: TOPEX0306H | B161: Capex component
A162: TOPEX0307H | B162: Other component
B163: Unused amounts reversed during the period
A164: TOPEX0308H | B164: Opex component
A165: TOPEX0309H | B165: Capex component
A166: TOPEX0310H | B166: Other component
B167: The increase during the period in the discounted amount arising from the passage of time and the effect of any change in the discount rate
A168: TOPEX0311H | B168: Opex component
A169: TOPEX0312H | B169: Capex component
A170: TOPEX0313H | B170: Other component
A171: TOPEX0314H | B171: Closing balance (carrying amount at the end of the period)
A172: TOPEX03I | B172: Provision name
B173: Brief description of provision
A174: TOPEX0301I | B174: Opening balance (the carrying amount at the beginning of the period)
B175: Additional provisions made in the period, including increases to existing provisions
A176: TOPEX0302I | B176: Opex component
A177: TOPEX0303I | B177: Capex component
A178: TOPEX0304I | B178: Other component
B179: Amounts used (that is, incurred and charged against the provision) during the period
A180: TOPEX0305I | B180: Opex component
A181: TOPEX0306I | B181: Capex component
A182: TOPEX0307I | B182: Other component
B183: Unused amounts reversed during the period
A184: TOPEX0308I | B184: Opex component
A185: TOPEX0309I | B185: Capex component
A186: TOPEX0310I | B186: Other component
B187: The increase during the period in the discounted amount arising from the passage of time and the effect of any change in the discount rate
A188: TOPEX0311I | B188: Opex component
A189: TOPEX0312I | B189: Capex component
A190: TOPEX0313I | B190: Other component
A191: TOPEX0314I | B191: Closing balance (carrying amount at the end of the period)
A192: TOPEX03J | B192: Provision name
B193: Brief description of provision
A194: TOPEX0301J | B194: Opening balance (the carrying amount at the beginning of the period)
B195: Additional provisions made in the period, including increases to existing provisions
A196: TOPEX0302J | B196: Opex component
A197: TOPEX0303J | B197: Capex component
A198: TOPEX0304J | B198: Other component
B199: Amounts used (that is, incurred and charged against the provision) during the period
A200: TOPEX0305J | B200: Opex component
A201: TOPEX0306J | B201: Capex component
A202: TOPEX0307J | B202: Other component
B203: Unused amounts reversed during the period
... 169 more rows

Sheet 7.1 Policies and Procedures
B1: =(LOOKUP(dms_Model,dms_Model_List,dms_Worksheet_List)) -> REGULATORY REPORTING STATEMENT
B2: =INDEX(dms_TradingNameFull_List,MATCH(dms_TradingName,dms_TradingName_List)) -> Directlink
B3: =IF(SUM(dms_SingleYear_Model)>0,CRY,CONCATENATE(FRCP_y1," to ",dms_MultiYear_FinalYear_Result)) -> 2020-21 to 2024-25
B4: 7.1 PLANS, POLICIES, PROCEDURES AND STRATEGIES
B6: Instructions
B7: =CONCATENATE(dms_TradingName, " must list and provide a brief description of key internal plans, "&"policies, procedures or strategies that are used by it to plan and conduct its day to day operations and that have been relied upon in the development of its regulatory proposal. "&dms_TradingName," must identify any internal plans, policies, procedures and strategies that have changed in the current regulatory control period "&"or that are expected to change before the next regulatory control period where the change has been identified as a step change.") -> Directlink must list and provide a brief description of key internal plans, policies, procedures or strategies that are used by it to plan and conduct its day to day operations and that have been relied upon in the development of its regulatory proposal. Directlink must identify any internal plans, policies, procedures and strategies that have changed in the current regulatory control period or that are expected to change before the next regulatory control period where the change has been identified as a step change.
B11: 7.1.1 - PLANS, POLICIES, PROCEDURES AND STRATEGIES
C12: Brief description | D12: Relevance to regulatory proposal | E12: Expenditure impact
C13: Description of the plan, policy, procedure or strategy. | D13: Identify the element of the proposal/supporting documents that the policy, plan, procedure or strategy is relevant to e.g. replacement capex, capacity utilisation thresholds, opex | E13: Is this policy, plan or procedure identified in the response to section 4 'Step Changes' of the notice (yes or no)?
B14: Corporate
B18: Governance framework
B36: Accounting policies, procedures and methodologies (including a capitalisation policy, depreciation policy and an approved expenditure allocation methodology)
B37: Accounting policy - Property, Plant & Equipment | C37: Describes the Accounting Treatment of items of Property, plants & Equipment. | D37: Includes definitions of Assets, the Recognition criteria oto capitalise assets and the treatmetn of subsequent costs. | E37: no
B38: Cost Allocation Methodology | C38: Describes the accounting treatment to allocate costs to different activities and categories | D38: Includes accounting methodlogies and impacts capital expedniture and operating expenditure | E38: no
B40: Asset management plan or equivalent documentation
B41: Asset Management Policies
B44: Asset Management Strategies
B49: Asset Management Plans
B50: Directlink Asset Management Plan | C50: Translates Directlink’s strategic goals and objectives, the requirements of stakeholders, and the technical and practical requirements of the assets into programmes of work and plans of action to meet these requirements. | D50: Sets out the rationale for the operations, maintenance and captial expenditure requested in the revenue proposal. | E50: no
B73: Capital expenditure policies and procedures (including capex approval policies and procedures and replacement policy)
B78: Internal standards for network planning, design, maintenance and operation
B79: Directlink Interconnector Safety, Reliability, Maintenance and Technical Management Plan Revision | C79: Provides a description of the policies and practices with respect to the safety and technical management of the the Directlink DC Interconnection | D79: Sets out the activities undertaken to ensure Directlink complies with relevant legislation.
B158: Procurement and contracting out policies
B159: APA Group Procurement Policy | C159: Describes the process for undertaking procurement for APA group entities including APA operations | D159: Capex and Opex | E159: no
B163: Information technology policies or strategies
B164: APA Group IT Security Policy | C164: Outlines the Framework of Policy, Standards and Procedures required to manage information security within APA. | D164: Supports for capex and opex requirements | E164: no
B165: APA Group IT Acceptable Use Policy | C165: Defines the acceptable and unacceptable use of APA Group’s Information Technology systems and equipment. | D165: Supports for capex and opex requirements | E165: no
B200: Demand management policies or strategies
B204: Self insurance guidelines or policy
B209: Land and easement acquisition polices
B214: Asset security plans and policies
B225: Disaster recovery policy
B226: 330-PL-CMP-2004_Rev 1 Emergency Management Plan (Directlink) | C226: Sets out the procedures and resources to be deployed by APA Group personnel in the event of an incident at Directlink | D226: Supports for capex and opex requirements | E226: no

Sheet 7.2 Contingent projects
B1: =(LOOKUP(dms_Model,dms_Model_List,dms_Worksheet_List)) -> REGULATORY REPORTING STATEMENT
B2: =INDEX(dms_TradingNameFull_List,MATCH(dms_TradingName,dms_TradingName_List)) -> Directlink
B3: =IF(SUM(dms_SingleYear_Model)>0,CRY,CONCATENATE(FRCP_y1," to ",dms_MultiYear_FinalYear_Result)) -> 2020-21 to 2024-25
B4: 7.2 CONTINGENT PROJECTS
B7: Instructions
B8: =CONCATENATE(dms_TradingName," is required to populate all input cells (yellow) in table 7.2.1 presented below. Additional rows may be added by ",dms_TradingName," if required." ) -> Directlink is required to populate all input cells (yellow) in table 7.2.1 presented below. Additional rows may be added by Directlink if required.
B10: 7.2.1 - PROPOSED CONTINGENT PROJECTS FOR THE FORTHCOMING REGULATORY CONTROL PERIOD
B11: Proposed contingent project name | C11: Proposed contingent capital expenditure ($0's, nominal) | D11: Proposed trigger events | E11: =CONCATENATE("Proposed MAR for ", FRCP_y1," ($0's, nominal)") -> Proposed MAR for 2020-21 ($0's, nominal) | F11: =CONCATENATE("5 per cent of the ", FRCP_y1," ($0's, nominal) MAR") -> 5 per cent of the 2020-21 ($0's, nominal) MAR
F12: =+E12*0.05 -> 0
E13: =+$E$12 -> 0 | F13: =+E13*0.05 -> 0
E14: =+$E$12 -> 0 | F14: 0
E15: 0 | F15: 0
E16: 0 | F16: 0
E17: 0 | F17: 0
E18: 0 | F18: 0
E19: 0 | F19: 0
E20: 0 | F20: 0
E21: 0 | F21: 0
E22: 0 | F22: 0
E23: 0 | F23: 0
E24: 0 | F24: 0
E25: 0 | F25: 0
E26: 0 | F26: 0
E27: 0 | F27: 0
E28: 0 | F28: 0
E29: 0 | F29: 0
E30: 0 | F30: 0
E31: 0 | F31: 0

Sheet 7.3 Obligations
B1: =(LOOKUP(dms_Model,dms_Model_List,dms_Worksheet_List)) -> REGULATORY REPORTING STATEMENT
B2: =INDEX(dms_TradingNameFull_List,MATCH(dms_TradingName,dms_TradingName_List)) -> Directlink
B3: =IF(SUM(dms_SingleYear_Model)>0,CRY,CONCATENATE(FRCP_y1," to ",dms_MultiYear_FinalYear_Result)) -> 2020-21 to 2024-25
B4: 7.3 OBLIGATIONS, REQUIREMENTS & STANDARDS
B6: There is ONE table on this worksheet. It has been sub-grouped for ease of navigation. See the Instructions sheet on how to group or ungroup data.
B8: Instructions
B9: =CONCATENATE("Outline those obligations and requirements that ",dms_TradingName, " identifies as having a material impact on expenditure requirements.") -> Outline those obligations and requirements that Directlink identifies as having a material impact on expenditure requirements.
B12: 7.3.1 - OBLIGATIONS OR REQUIREMENTS
C13: Brief description | D13: Relevance to regulatory proposal | E13: Expenditure impact
C14: Description of relevant obligations or requirements within the instrument (e.g. safety obligations, reliability targets) | D14: Identify what element of the proposal/supporting documents the obligation or requirement is relevant to e.g. replacement capex, capacity utilisation thresholds, opex | E14: Is the obligation or requirement identified in the response to section 4 'Step Changes' of the notice (yes or no)?
B15: Legislation
B16: Electricity Supply Act 1995; | C16: Safety and Reliability | D16: These legislative instruments impact the operation of the interconnector generally. | E16: No
B17: Electricity Supply (General) Regulation 2001 | C17: Safety and Reliability
B18: Electricity Supply (Safety and Network Management) Regulation 2008; | C18: Safety
B19: National Electricity (New South Wales) Act 1997; | C19: Safety and Reliability
B20: New South Wales - Occupational Health and Safety Act 2000, and | C20: Safety
B21: New South Wales - Occupational Health and Safety Regulation 2001. | C21: Safety
B227: Licences
B232: Rules
B233: National Electricity Rules | C233: safety and reliability | D233: Opex and capex | E233: No
B237: Orders
B241: Codes
B257: Guidelines
B296: Default agreements
B301: Other

Sheet 7.4 Shared Assets
B1: =(LOOKUP(dms_Model,dms_Model_List,dms_Worksheet_List)) -> REGULATORY REPORTING STATEMENT
B2: =INDEX(dms_TradingNameFull_List,MATCH(dms_TradingName,dms_TradingName_List)) -> Directlink
B3: =IF(SUM(dms_SingleYear_Model)>0,CRY,CONCATENATE(FRCP_y1," to ",dms_MultiYear_FinalYear_Result)) -> 2020-21 to 2024-25
B4: 7.4 SHARED ASSETS
B6: 7.4.1 - TOTAL UNREGULATED REVENUE EARNED WITH SHARED ASSETS
B7: Name of shared asset unregulated service | C7: Description of shared assets used to provide the service | D7: Shared asset unregulated revenue ($0's, nominal) | L7: =CONCATENATE("Shared asset unregulated revenue ($0's, real ", dms_DollarReal,")") -> Shared asset unregulated revenue ($0's, real June 2020)
D8: =PRCP_y1 -> 2010-11 | E8: =PRCP_y2 -> 2011-12 | F8: =PRCP_y3 -> 2012-13 | G8: =PRCP_y4 -> 2013-14 | H8: =PRCP_y5 -> 2014-15 | I8: =CRCP_y1 -> 2015-16 | J8: =CRCP_y2 -> 2016-17 | K8: =CRCP_y3 -> 2017-18 | L8: =CRCP_y4 -> 2018-19 | M8: =CRCP_y5 -> 2019-20 | N8: =FRCP_y1 -> 2020-21 | O8: =FRCP_y2 -> 2021-22 | P8: =FRCP_y3 -> 2022-23 | Q8: =FRCP_y4 -> 2023-24 | R8: =FRCP_y5 -> 2024-25 | S8: =CONCATENATE("Total ",FRCP_y1, "-", FRCP_y5) -> Total 2020-21-2024-25
S9: =SUM(N9:R9) -> 0
S10: =SUM(N10:R10) -> 0
S11: 0
S12: 0
S13: 0
S14: 0
S15: 0
S16: 0
S17: 0
S18: 0
S19: 0
S20: =SUM(N20:R20) -> 0
S21: =SUM(N21:R21) -> 0
S22: =SUM(N22:R22) -> 0
S23: =SUM(N23:R23) -> 0
B25: 7.4.2 - SHARED ASSET UNREGULATED SERVICES - APPORTIONMENT METHODOLOGY
B26: Name of shared asset unregulated service for which revenues were apportioned | C26: Apportionment methodology

Sheet 7.8 WACC Inputs
B1: =SheetHeader -> REGULATORY REPORTING STATEMENT
B2: =dms_TradingName -> Directlink
B3: =dms_Reg_Year_Span -> 2020-21 to 2024-25
B4: 7.8 WACC AND CAPM PARAMETERS
B7: 7.8 - WACC AND CAPM PARAMETERS
B8: 7.8.1 - RATE OF RETURN ON EQUITY
B9: Equity averaging period - nominated (placeholder)
B10: Start date (inclusive) | C10: confidential
B11: End date (inclusive) | C11: confidential
B12: Number of business days | C12: 20
B14: Nominated equity averaging period
B15: Start date (inclusive) | C15: confidential
B16: End date (inclusive) | C16: confidential
B17: Number of business days | C17: 20
B20: Nominal risk free rate | C20: 0.0245
B21: Equity term - risk free rate | C21: 10 years
B22: Forecast Inflation rate | C22: 0.0241
B23: Market risk premium | C23: 0.061
B24: Equity beta | C24: 0.6
B25: Equity risk premium | C25: =C23*C24 -> 0.0366
B28: 7.8.2 - RATE OF RETURN ON DEBT - Transition - 'trailing average' approach
B29: Debt averaging period - Year 1 nominated (placeholder)
B30: Start date (inclusive) | C30: confidential
B31: End date (inclusive) | C31: confidential
B32: Number of business days | C32: 20
B35: Year 1 nominated debt averaging period
B36: Start date (inclusive) | C36: confidential
B37: End date (inclusive) | C37: confidential
B38: Number of business days | C38: 20
B40: Year 2 nominated debt averaging period
B41: Start date (inclusive) | C41: confidential
B42: End date (inclusive) | C42: confidential
B43: Number of business days | C43: 20
B45: Year 3 nominated debt averaging period
B46: Start date (inclusive) | C46: confidential
B47: End date (inclusive) | C47: confidential
B48: Number of business days | C48: 20
B50: Year 4 nominated debt averaging period
B51: Start date (inclusive) | C51: confidential
B52: End date (inclusive) | C52: confidential
B53: Number of business days | C53: 20
B55: Year 5 nominated debt averaging period
B56: Start date (inclusive) | C56: confidential
B57: End date (inclusive) | C57: confidential
B58: Number of business days | C58: 20
B61: Credit rating | C61: BBB+
B63: Debt term | C63: 10 years

Sheet 7.9 STPIS
B1: =(LOOKUP(dms_Model,dms_Model_List,dms_Worksheet_List)) -> REGULATORY REPORTING STATEMENT
B2: =INDEX(dms_TradingNameFull_List,MATCH(dms_TradingName,dms_TradingName_List)) -> Directlink
B3: =IF(SUM(dms_SingleYear_Model)>0,CRY,CONCATENATE(FRCP_y1," to ",dms_MultiYear_FinalYear_Result)) -> 2020-21 to 2024-25
B4: 7.9 SERVICE TARGET PERFORMANCE INCENTIVE SCHEME (STPIS)
B6: There are FOUR tables on this worksheet. Each table has been grouped (and sub-grouped) for ease of navigation. See the Instructions sheet on how to group or ungroup tables.
B8: Instructions
B9: =dms_TradingName&" is required to provide the performance actuals for the most recent five years, and the proposed cap, floor and target for the next regulatory control period for the parameters under the service component of the STPIS in table 7.9.1 below." -> Directlink is required to provide the performance actuals for the most recent five years, and the proposed cap, floor and target for the next regulatory control period for the parameters under the service component of the STPIS in table 7.9.1 below.
B11: 7.9.1 - Historical performance and proposed floor, caps and targets for the service component of the STPIS
B12: Parameter | C12: Performance actuals | I12: Average of actual performance | J12: Floor | K12: Target | L12: Cap | M12: Weighting (% of MAR)
C13: =(LEFT(PRCP_y4,2)&RIGHT(PRCP_y4,2)) -> 2014 | D13: =LEFT(PRCP_y5,2)&RIGHT(PRCP_y5,2) -> 2015 | E13: =(LEFT(CRCP_y1,2)&RIGHT(CRCP_y1,2)) -> 2016 | F13: =(LEFT(CRCP_y2,2)&RIGHT(CRCP_y2,2)) -> 2017 | G13: =(LEFT(CRCP_y3,2)&RIGHT(CRCP_y3,2)) -> 2018 | H13: =(LEFT(CRCP_y4,2)&RIGHT(CRCP_y4,2)) -> 2019
B14: Unplanned outage circuit event rate:
B15: Circuit outage rate - fault | D15: 6.33 | E15: 7 | F15: 11.33 | G15: 10 | I15: =+AVERAGE(C15:G15) -> 8.665 | J15: 10.90565876 | K15: 7.398 | L15: 3.890341237 | M15: 0.0075
B16: Circuit outage rate - forced | D16: 2.33 | E16: 2.3333 | F16: 1 | G16: 0.6667 | I16: =+AVERAGE(C16:G16) -> 1.5825 | J16: 3.386596246 | K16: 2.066 | L16: 0.745403754 | M16: 0.005
B17: Loss of supply event frequency (number of events):
B18: > (x) system minutes | I18: =+AVERAGE(C18:G18) -> 
B19: > (y) system minutes | I19: =+AVERAGE(C19:G19) -> 
B20: Average outage duration (minutes): | I20: =+AVERAGE(C20:G20) -> 
B21: Proper operation of equipment (number of events):
B22: Failure of protection system | D22: 4 | E22: 4 | F22: 0 | G22: 2 | I22: =+AVERAGE(C22:G22) -> 2.5 | J22: 4.414854216 | K22: 2.5 | L22: 0.5851457845 | M22: 0
B23: Material failure of SCADA | I23: =+AVERAGE(C23:G23) ->  | M23: 0
B24: Incorrect operational isolation of primary or secondary equipment | I24: =+AVERAGE(C24:G24) ->  | M24: 0
B28: 7.9.2 - Proposed priority projects for the network capability incentive parameter
B29: Project ranking | C29: Transmission Circuit / Injection Point | D29: Scope of works | E29: =CONCATENATE(("If applicable, the present value of quantified benefits associated with the project ($0's, "),CRCP_y5,")") -> If applicable, the present value of quantified benefits associated with the project ($0's, 2019-20) | F29: =CONCATENATE(("Project cost ($0's, "),CRCP_y5,")") -> Project cost ($0's, 2019-20)
F30: =FRCP_y1 -> 2020-21 | G30: =FRCP_y2 -> 2021-22 | H30: =FRCP_y3 -> 2022-23 | I30: =FRCP_y4 -> 2023-24 | J30: =FRCP_y5 -> 2024-25 | K30: Opex | L30: Capex
B31: 1
B32: 2
B33: 3
B34: 4
B35: 5
B36: 6
B37: 7
B38: 8
B39: 9
B40: 10
B41: 11
B42: 12
B43: 13
B44: 14
B45: 15
B46: 16
B51: 7.9.3 – Network limit information
B52: Limit identification | C52: Define limit | D52: Reason for the limit | E52: Is limit addressed by priority project | F52: Supporting information reference
B65: 7.9.4 - Market impact component
B66: Instructions
B67: =dms_TradingName&" is required to provide performance data in accordance with Appendix C of the STPIS for the preceding seven calendar years in table 7.9.4 below. "&dms_TradingName&" is also required to provide relevant information in the MIC workbook attached to Appendix A of the Notice." -> Directlink is required to provide performance data in accordance with Appendix C of the STPIS for the preceding seven calendar years in table 7.9.4 below. Directlink is also required to provide relevant information in the MIC workbook attached to Appendix A of the Notice.
D69: Market impact parameter
D70: Planned outage count(DI) | F70: Unplanned outage count (DI)
B71: Year | C71: Month | D71: without exclusions | E71: with exclusions | F71: without exclusions | G71: with exclusions | H71: Market impact parameters
B72: =LEFT(PRCP_y3,4) -> 2012 | C72: January | H72: =+E72/12 -> 0
B73: 2012 | C73: February | H73: 0
B74: 2012 | C74: March | H74: 0
B75: 2012 | C75: April | H75: 0
B76: 2012 | C76: May | H76: 0
B77: 2012 | C77: June | H77: 0
B78: 2012 | C78: July | H78: 0
B79: 2012 | C79: August | H79: 0
B80: 2012 | C80: September | H80: 0
B81: 2012 | C81: October | H81: 0
B82: 2012 | C82: November | H82: 0
B83: 2012 | C83: December | H83: 0
B84: =CONCATENATE("Total ",LEFT(PRCP_y3,4)) -> Total 2012 | D84: =+SUM(D72:D83) -> 0 | E84: =+SUM(E72:E83) -> 0 | F84: =+SUM(F72:F83) -> 0 | G84: =+SUM(G72:G83) -> 0 | H84: =+SUM(H72:H83) -> 0
B85: =LEFT(PRCP_y4,4) -> 2013 | C85: January | H85: =+E85/12 -> 0
B86: 2013 | C86: February | H86: 0
B87: 2013 | C87: March | H87: 0
B88: 2013 | C88: April | H88: 0
B89: 2013 | C89: May | H89: 0
B90: 2013 | C90: June | H90: 0
B91: 2013 | C91: July | H91: 0
B92: 2013 | C92: August | H92: 0
B93: 2013 | C93: September | H93: 0
B94: 2013 | C94: October | H94: 0
B95: 2013 | C95: November | H95: 0
B96: 2013 | C96: December | H96: 0
B97: =CONCATENATE("Total ", LEFT(PRCP_y4,4)) -> Total 2013 | D97: =+SUM(D85:D96) -> 0 | E97: =+SUM(E85:E96) -> 0 | F97: =+SUM(F85:F96) -> 0 | G97: =+SUM(G85:G96) -> 0 | H97: =+SUM(H85:H96) -> 0
B98: =LEFT(PRCP_y5,4) -> 2014 | C98: January | H98: =+E98/12 -> 0
B99: 2014 | C99: February | H99: 0
B100: 2014 | C100: March | H100: 0
B101: 2014 | C101: April | H101: 0
B102: 2014 | C102: May | H102: 0
B103: 2014 | C103: June | H103: 0
B104: 2014 | C104: July | H104: 0
B105: 2014 | C105: August | H105: 0
B106: 2014 | C106: September | H106: 0
B107: 2014 | C107: October | H107: 0
B108: 2014 | C108: November | H108: 0
B109: 2014 | C109: December | H109: 0
B110: =CONCATENATE("Total ", LEFT(PRCP_y5,4)) -> Total 2014 | D110: =+SUM(D98:D109) -> 0 | E110: =+SUM(E98:E109) -> 0 | F110: =+SUM(F98:F109) -> 0 | G110: =+SUM(G98:G109) -> 0 | H110: =+SUM(H98:H109) -> 0
B111: =LEFT(CRCP_y1,4) -> 2015 | C111: January | D111: 3 | E111: 3 | F111: 71 | G111: 64 | H111: =+E111/12 -> 0.25
B112: 2015 | C112: February | D112: 2 | E112: 2 | F112: 571 | G112: 571 | H112: 0.1666666667
B113: 2015 | C113: March | D113: 28 | E113: 28 | F113: 754 | G113: 754 | H113: 2.333333333
B114: 2015 | C114: April | D114: 0 | E114: 0 | F114: 138 | G114: 138 | H114: 0
B115: 2015 | C115: May | D115: 0 | E115: 0 | F115: 255 | G115: 255 | H115: 0
B116: 2015 | C116: June | D116: 142 | E116: 142 | F116: 424 | G116: 424 | H116: 11.83333333
B117: 2015 | C117: July | D117: 7 | E117: 7 | F117: 299 | G117: 299 | H117: 0.5833333333
B118: 2015 | C118: August | D118: 62 | E118: 62 | F118: 4 | G118: 4 | H118: 5.166666667
B119: 2015 | C119: September | D119: 136 | E119: 136 | F119: 0 | G119: 0 | H119: 11.33333333
B120: 2015 | C120: October | D120: 128 | E120: 128 | F120: 1 | G120: 1 | H120: 10.66666667
B121: 2015 | C121: November | D121: 122 | E121: 122 | F121: 0 | G121: 0 | H121: 10.16666667
B122: 2015 | C122: December | D122: 44 | E122: 44 | F122: 9 | G122: 9 | H122: 3.666666667
B123: =CONCATENATE("Total ", LEFT(CRCP_y1,4)) -> Total 2015 | D123: =+SUM(D111:D122) -> 674 | E123: =+SUM(E111:E122) -> 674 | F123: =+SUM(F111:F122) -> 2526 | G123: =+SUM(G111:G122) -> 2519 | H123: =+SUM(H111:H122) -> 56.16666667
B124: =LEFT(CRCP_y2,4) -> 2016 | C124: January | D124: 20 | E124: 20 | F124: 90 | G124: 90 | H124: =+E124/12 -> 1.666666667
B125: 2016 | C125: February | D125: 274 | E125: 274 | F125: 352 | G125: 352 | H125: 22.83333333
B126: 2016 | C126: March | D126: 3 | E126: 3 | F126: 74 | G126: 74 | H126: 0.25
B127: 2016 | C127: April | D127: 8 | E127: 8 | F127: 163 | G127: 163 | H127: 0.6666666667
B128: 2016 | C128: May | D128: 0 | E128: 0 | F128: 0 | G128: 0 | H128: 0
B129: 2016 | C129: June | D129: 44 | E129: 44 | F129: 198 | G129: 198 | H129: 3.666666667
B130: 2016 | C130: July | D130: 49 | E130: 49 | F130: 191 | G130: 191 | H130: 4.083333333
B131: 2016 | C131: August | D131: 0 | E131: 0 | F131: 43 | G131: 43 | H131: 0
B132: 2016 | C132: September | D132: 0 | E132: 0 | F132: 30 | G132: 30 | H132: 0
B133: 2016 | C133: October | D133: 0 | E133: 0 | F133: 26 | G133: 23 | H133: 0
B134: 2016 | C134: November | D134: 19 | E134: 19 | F134: 30 | G134: 5 | H134: 1.583333333
B135: 2016 | C135: December | D135: 91 | E135: 91 | F135: 51 | G135: 51 | H135: 7.583333333
B136: =CONCATENATE("Total ", LEFT(CRCP_y2,4)) -> Total 2016 | D136: =+SUM(D124:D135) -> 508 | E136: =+SUM(E124:E135) -> 508 | F136: =+SUM(F124:F135) -> 1248 | G136: =+SUM(G124:G135) -> 1220 | H136: =+SUM(H124:H135) -> 42.33333333
B137: =LEFT(CRCP_y3,4) -> 2017 | C137: January | D137: 2 | E137: 2 | F137: 400 | G137: 156 | H137: =+E137/12 -> 0.1666666667
B138: 2017 | C138: February | D138: 4 | E138: 4 | F138: 187 | G138: 44 | H138: 0.3333333333
B139: 2017 | C139: March | D139: 0 | E139: 0 | F139: 131 | G139: 126 | H139: 0
B140: 2017 | C140: April | D140: 0 | E140: 0 | F140: 808 | G140: 808 | H140: 0
B141: 2017 | C141: May | D141: 0 | E141: 0 | F141: 0 | G141: 0 | H141: 0
B142: 2017 | C142: June | D142: 28 | E142: 28 | F142: 180 | G142: 180 | H142: 2.333333333
B143: 2017 | C143: July | D143: 0 | E143: 0 | F143: 399 | G143: 399 | H143: 0
B144: 2017 | C144: August | D144: 0 | E144: 0 | F144: 2705 | G144: 2705 | H144: 0
B145: 2017 | C145: September | D145: 0 | E145: 0 | F145: 623 | G145: 623 | H145: 0
B146: 2017 | C146: October | D146: 0 | E146: 0 | F146: 893 | G146: 874 | H146: 0
B147: 2017 | C147: November | D147: 0 | E147: 0 | F147: 423 | G147: 423 | H147: 0
B148: 2017 | C148: December | D148: 326 | E148: 326 | F148: 364 | G148: 364 | H148: 27.16666667
B149: =CONCATENATE("Total ", LEFT(CRCP_y3,4)) -> Total 2017 | D149: =+SUM(D137:D148) -> 360 | E149: =+SUM(E137:E148) -> 360 | F149: =+SUM(F137:F148) -> 7113 | G149: =+SUM(G137:G148) -> 6702 | H149: =+SUM(H137:H148) -> 30
B150: =LEFT(CRCP_y4,4) -> 2018 | C150: January | D150: 0 | E150: 0 | F150: 198 | G150: 182 | H150: =+E150/12 -> 0
B151: 2018 | C151: February | D151: 98 | E151: 98 | F151: 438 | G151: 438 | H151: 8.166666667
B152: 2018 | C152: March | D152: 34 | E152: 34 | F152: 18 | G152: 18 | H152: 2.833333333
B153: 2018 | C153: April | D153: 0 | E153: 0 | F153: 27 | G153: 27 | H153: 0
B154: 2018 | C154: May | D154: 9 | E154: 9 | F154: 123 | G154: 123 | H154: 0.75
B155: 2018 | C155: June | D155: 96 | E155: 96 | F155: 17 | G155: 17 | H155: 8
B156: 2018 | C156: July | D156: 56 | E156: 56 | F156: 44 | G156: 44 | H156: 4.666666667
B157: 2018 | C157: August | D157: 254 | E157: 254 | F157: 60 | G157: 59 | H157: 21.16666667
B158: 2018 | C158: September | D158: 375 | E158: 375 | F158: 36 | G158: 36 | H158: 31.25
B159: 2018 | C159: October | D159: 443 | E159: 443 | F159: 19 | G159: 19 | H159: 36.91666667
B160: 2018 | C160: November | D160: 22 | E160: 22 | F160: 24 | G160: 24 | H160: 1.833333333
B161: 2018 | C161: December | D161: 1 | E161: 1 | F161: 79 | G161: 79 | H161: 0.08333333333
B162: =CONCATENATE("Total ", LEFT(CRCP_y4,4)) -> Total 2018 | D162: =+SUM(D150:D161) -> 1388 | E162: =+SUM(E150:E161) -> 1388 | F162: =+SUM(F150:F161) -> 1083 | G162: =+SUM(G150:G161) -> 1066 | H162: =+SUM(H150:H161) -> 115.6666667
B163: =LEFT(CRCP_y5,4) -> 2019 | C163: January | H163: =+E163/12 -> 0
B164: 2019 | C164: February | H164: 0
B165: 2019 | C165: March | H165: 0
B166: 2019 | C166: April | H166: 0
B167: 2019 | C167: May | H167: 0
B168: 2019 | C168: June | H168: 0
B169: 2019 | C169: July | H169: 0
B170: 2019 | C170: August | H170: 0
B171: 2019 | C171: September | H171: 0
B172: 2019 | C172: October | H172: 0
B173: 2019 | C173: November | H173: 0
B174: 2019 | C174: December | H174: 0
B175: =CONCATENATE("Total ", LEFT(CRCP_y5,4)) -> Total 2019 | D175: =+SUM(D163:D174) -> 0 | E175: =+SUM(E163:E174) -> 0 | F175: =+SUM(F163:F174) -> 0 | G175: =+SUM(G163:G174) -> 0 | H175: =+SUM(H163:H174) -> 0
